Body,Body name,Date,Transaction number,Amount,Supplier name,Supplier ID,Expense area,Fund type,Expense type
http://www.ons.gov.uk/ons/guide-method/geography/products/names--codes-and-look-ups/names-and-codes-listings/names-and-codes-for-administrative-geography/index.html,Thanet District Council,03/09/2013,344299,610.13,Adecco Uk Ltd,ADE005,Director of Corporate Services and Transformation,Revenue,Employees
http://www.ons.gov.uk/ons/guide-method/geography/products/names--codes-and-look-ups/names-and-codes-listings/names-and-codes-for-administrative-geography/index.html,Thanet District Council,03/09/2013,344300,610.13,Adecco Uk Ltd,ADE005,Director of Corporate Services and Transformation,Revenue,Employees
http://www.ons.gov.uk/ons/guide-method/geography/products/names--codes-and-look-ups/names-and-codes-listings/names-and-codes-for-administrative-geography/index.html,Thanet District Council,03/09/2013,344394,610.13,Adecco Uk Ltd,ADE005,Director of Corporate Services and Transformation,Revenue,Supplies And Services
http://www.ons.gov.uk/ons/guide-method/geography/products/names--codes-and-look-ups/names-and-codes-listings/names-and-codes-for-administrative-geography/index.html,Thanet District Council,03/09/2013,344475,494.7,Adecco Uk Ltd,ADE005,Director of Corporate Services and Transformation,Revenue,Supplies And Services
http://www.ons.gov.uk/ons/guide-method/geography/products/names--codes-and-look-ups/names-and-codes-listings/names-and-codes-for-administrative-geography/index.html,Thanet District Council,03/09/2013,344476,552.42,Adecco Uk Ltd,ADE005,Director of Corporate Services and Transformation,Revenue,Supplies And Services
http://www.ons.gov.uk/ons/guide-method/geography/products/names--codes-and-look-ups/names-and-codes-listings/names-and-codes-for-administrative-geography/index.html,Thanet District Council,03/09/2013,344309,330,Advanced Bird & Pest Control Ltd,ADV001,Director of Operational Services,Revenue,Premises Related Expenditure
http://www.ons.gov.uk/ons/guide-method/geography/products/names--codes-and-look-ups/names-and-codes-listings/names-and-codes-for-administrative-geography/index.html,Thanet District Council,03/09/2013,344765,266.89,Allstar Business Solutions Ltd,ALL038,Director of Operational Services,Revenue,Transport Related Expenditure
http://www.ons.gov.uk/ons/guide-method/geography/products/names--codes-and-look-ups/names-and-codes-listings/names-and-codes-for-administrative-geography/index.html,Thanet District Council,03/09/2013,344818,648.25,Ate (Uk) Limited,ANG014,Director of Operational Services,Revenue,Transport Related Expenditure
http://www.ons.gov.uk/ons/guide-method/geography/products/names--codes-and-look-ups/names-and-codes-listings/names-and-codes-for-administrative-geography/index.html,Thanet District Council,03/09/2013,344849,4557.68,Better Beaches Ltd,BET009,Director of Operational Services,Revenue,Supplies And Services
http://www.ons.gov.uk/ons/guide-method/geography/products/names--codes-and-look-ups/names-and-codes-listings/names-and-codes-for-administrative-geography/index.html,Thanet District Council,03/09/2013,344850,4557.68,Better Beaches Ltd,BET009,Director of Operational Services,Revenue,Supplies And Services
http://www.ons.gov.uk/ons/guide-method/geography/products/names--codes-and-look-ups/names-and-codes-listings/names-and-codes-for-administrative-geography/index.html,Thanet District Council,03/09/2013,344530,1889.53,Bt Payment Services Ltd,BTE003,Director of Corporate Services and Transformation,Balance Sheet,Current Assets
http://www.ons.gov.uk/ons/guide-method/geography/products/names--codes-and-look-ups/names-and-codes-listings/names-and-codes-for-administrative-geography/index.html,Thanet District Council,03/09/2013,344375,4272,Casement Signs And Traffic,CAS001,Director of Community Services,Revenue,Supplies And Services
http://www.ons.gov.uk/ons/guide-method/geography/products/names--codes-and-look-ups/names-and-codes-listings/names-and-codes-for-administrative-geography/index.html,Thanet District Council,03/09/2013,344352,913.99,Child Poverty Action Group,CPA001,East Kent Shared Services,Revenue,Supplies And Services
http://www.ons.gov.uk/ons/guide-method/geography/products/names--codes-and-look-ups/names-and-codes-listings/names-and-codes-for-administrative-geography/index.html,Thanet District Council,03/09/2013,344779,370,Dover Counselling Centre,DOV014,East Kent Shared Services,Revenue,Employees
http://www.ons.gov.uk/ons/guide-method/geography/products/names--codes-and-look-ups/names-and-codes-listings/names-and-codes-for-administrative-geography/index.html,Thanet District Council,03/09/2013,344399,397.2,Eagle Envelopes Ltd,EAG001,East Kent Shared Services,Revenue,Supplies And Services
http://www.ons.gov.uk/ons/guide-method/geography/products/names--codes-and-look-ups/names-and-codes-listings/names-and-codes-for-administrative-geography/index.html,Thanet District Council,03/09/2013,344528,110303,East Kent Housing Ltd,EKH002,Director of Community Services,Revenue,Third Party Payments
http://www.ons.gov.uk/ons/guide-method/geography/products/names--codes-and-look-ups/names-and-codes-listings/names-and-codes-for-administrative-geography/index.html,Thanet District Council,03/09/2013,344365,323.28,Emblem Print Products Ltd,EMB001,Director of Community Services,Revenue,Supplies And Services
http://www.ons.gov.uk/ons/guide-method/geography/products/names--codes-and-look-ups/names-and-codes-listings/names-and-codes-for-administrative-geography/index.html,Thanet District Council,03/09/2013,344032,573,Eyeball Signs,EYE002,Director of Community Services,Revenue,Supplies And Services
http://www.ons.gov.uk/ons/guide-method/geography/products/names--codes-and-look-ups/names-and-codes-listings/names-and-codes-for-administrative-geography/index.html,Thanet District Council,03/09/2013,344333,314.9,Eyeball Signs,EYE002,Director of Operational Services,Revenue,Premises Related Expenditure
http://www.ons.gov.uk/ons/guide-method/geography/products/names--codes-and-look-ups/names-and-codes-listings/names-and-codes-for-administrative-geography/index.html,Thanet District Council,03/09/2013,344356,420,Four Jays Ltd,FOU007,Director of Community Services,Revenue,Supplies And Services
http://www.ons.gov.uk/ons/guide-method/geography/products/names--codes-and-look-ups/names-and-codes-listings/names-and-codes-for-administrative-geography/index.html,Thanet District Council,03/09/2013,343882,6000,Gardiner & Theobald Llp,GAR020,Director of Corporate Services and Transformation,Balance Sheet,Long Term Assets
http://www.ons.gov.uk/ons/guide-method/geography/products/names--codes-and-look-ups/names-and-codes-listings/names-and-codes-for-administrative-geography/index.html,Thanet District Council,03/09/2013,344862,349.58,Geesink Norba Ltd,GEE006,Director of Operational Services,Revenue,Supplies And Services
http://www.ons.gov.uk/ons/guide-method/geography/products/names--codes-and-look-ups/names-and-codes-listings/names-and-codes-for-administrative-geography/index.html,Thanet District Council,03/09/2013,344473,8021.25,Goody Demolition Ltd,GOO007,Director of Corporate Services and Transformation,Balance Sheet,Long Term Assets
http://www.ons.gov.uk/ons/guide-method/geography/products/names--codes-and-look-ups/names-and-codes-listings/names-and-codes-for-administrative-geography/index.html,Thanet District Council,03/09/2013,344553,238,Goodyear Dunlop Truckforce,GOO018,Director of Operational Services,Revenue,Transport Related Expenditure
http://www.ons.gov.uk/ons/guide-method/geography/products/names--codes-and-look-ups/names-and-codes-listings/names-and-codes-for-administrative-geography/index.html,Thanet District Council,03/09/2013,344554,930.84,Goodyear Dunlop Truckforce,GOO018,Director of Operational Services,Revenue,Transport Related Expenditure
http://www.ons.gov.uk/ons/guide-method/geography/products/names--codes-and-look-ups/names-and-codes-listings/names-and-codes-for-administrative-geography/index.html,Thanet District Council,03/09/2013,344555,780,Goodyear Dunlop Truckforce,GOO018,Director of Operational Services,Revenue,Transport Related Expenditure
http://www.ons.gov.uk/ons/guide-method/geography/products/names--codes-and-look-ups/names-and-codes-listings/names-and-codes-for-administrative-geography/index.html,Thanet District Council,03/09/2013,344556,2702.88,Goodyear Dunlop Truckforce,GOO018,Director of Operational Services,Revenue,Transport Related Expenditure
http://www.ons.gov.uk/ons/guide-method/geography/products/names--codes-and-look-ups/names-and-codes-listings/names-and-codes-for-administrative-geography/index.html,Thanet District Council,03/09/2013,344294,239.02,Hem Des Llp,HEM007,Director of Corporate Services and Transformation,Balance Sheet,Long Term Assets
http://www.ons.gov.uk/ons/guide-method/geography/products/names--codes-and-look-ups/names-and-codes-listings/names-and-codes-for-administrative-geography/index.html,Thanet District Council,03/09/2013,343862,1237,Herrington Consulting Ltd,HER012,Director of Corporate Services and Transformation,Balance Sheet,Long Term Assets
http://www.ons.gov.uk/ons/guide-method/geography/products/names--codes-and-look-ups/names-and-codes-listings/names-and-codes-for-administrative-geography/index.html,Thanet District Council,03/09/2013,344327,216.9,Hi Way Services Ltd,HIW002,Director of Corporate Services and Transformation,Balance Sheet,Long Term Assets
http://www.ons.gov.uk/ons/guide-method/geography/products/names--codes-and-look-ups/names-and-codes-listings/names-and-codes-for-administrative-geography/index.html,Thanet District Council,03/09/2013,344480,8622.71,Hr Go Recruitment Ltd,HRG002,Director of Operational Services,Revenue,Employees
http://www.ons.gov.uk/ons/guide-method/geography/products/names--codes-and-look-ups/names-and-codes-listings/names-and-codes-for-administrative-geography/index.html,Thanet District Council,03/09/2013,344482,387.96,Hr Go Recruitment Ltd,HRG002,Director of Operational Services,Revenue,Employees
http://www.ons.gov.uk/ons/guide-method/geography/products/names--codes-and-look-ups/names-and-codes-listings/names-and-codes-for-administrative-geography/index.html,Thanet District Council,03/09/2013,344483,5351.98,Hr Go Recruitment Ltd,HRG002,Director of Operational Services,Revenue,Employees
http://www.ons.gov.uk/ons/guide-method/geography/products/names--codes-and-look-ups/names-and-codes-listings/names-and-codes-for-administrative-geography/index.html,Thanet District Council,03/09/2013,344484,499.5,Hr Go Recruitment Ltd,HRG002,Director of Operational Services,Revenue,Employees
http://www.ons.gov.uk/ons/guide-method/geography/products/names--codes-and-look-ups/names-and-codes-listings/names-and-codes-for-administrative-geography/index.html,Thanet District Council,03/09/2013,344776,9411.86,Hr Go Recruitment Ltd,HRG002,Director of Operational Services,Revenue,Employees
http://www.ons.gov.uk/ons/guide-method/geography/products/names--codes-and-look-ups/names-and-codes-listings/names-and-codes-for-administrative-geography/index.html,Thanet District Council,03/09/2013,343915,1127.48,Hydro-Cleansing Ltd,HYD012,Director of Corporate Services and Transformation,Balance Sheet,Current Assets
http://www.ons.gov.uk/ons/guide-method/geography/products/names--codes-and-look-ups/names-and-codes-listings/names-and-codes-for-administrative-geography/index.html,Thanet District Council,03/09/2013,344038,1875,Ind Protective Coatings Servs Ltd,IPC002,Director of Corporate Services and Transformation,Balance Sheet,Long Term Assets
http://www.ons.gov.uk/ons/guide-method/geography/products/names--codes-and-look-ups/names-and-codes-listings/names-and-codes-for-administrative-geography/index.html,Thanet District Council,03/09/2013,344402,549.28,Insight Direct (Uk) Ltd,INS013,East Kent Shared Services,Revenue,Supplies And Services
http://www.ons.gov.uk/ons/guide-method/geography/products/names--codes-and-look-ups/names-and-codes-listings/names-and-codes-for-administrative-geography/index.html,Thanet District Council,03/09/2013,344397,606.2,Intertruck Ltd,INT022,Director of Operational Services,Revenue,Transport Related Expenditure
http://www.ons.gov.uk/ons/guide-method/geography/products/names--codes-and-look-ups/names-and-codes-listings/names-and-codes-for-administrative-geography/index.html,Thanet District Council,03/09/2013,344398,310.6,Intertruck Ltd,INT022,Director of Operational Services,Revenue,Transport Related Expenditure
http://www.ons.gov.uk/ons/guide-method/geography/products/names--codes-and-look-ups/names-and-codes-listings/names-and-codes-for-administrative-geography/index.html,Thanet District Council,03/09/2013,344310,300,Ipc Media Ltd,IPC001,Director of Operational Services,Revenue,Supplies And Services
http://www.ons.gov.uk/ons/guide-method/geography/products/names--codes-and-look-ups/names-and-codes-listings/names-and-codes-for-administrative-geography/index.html,Thanet District Council,03/09/2013,344442,467.8,Jewson Ltd,JEW001,Director of Operational Services,Revenue,Premises Related Expenditure
http://www.ons.gov.uk/ons/guide-method/geography/products/names--codes-and-look-ups/names-and-codes-listings/names-and-codes-for-administrative-geography/index.html,Thanet District Council,03/09/2013,343558,11200,Kent County Council,KCC002,Director of Corporate Services and Transformation,Revenue,Supplies And Services
http://www.ons.gov.uk/ons/guide-method/geography/products/names--codes-and-look-ups/names-and-codes-listings/names-and-codes-for-administrative-geography/index.html,Thanet District Council,03/09/2013,344031,215,Kent County Council,KCC002,Director of Corporate Services and Transformation,Revenue,Supplies And Services
http://www.ons.gov.uk/ons/guide-method/geography/products/names--codes-and-look-ups/names-and-codes-listings/names-and-codes-for-administrative-geography/index.html,Thanet District Council,03/09/2013,344057,12880,Kent County Council,KCC002,Director of Corporate Services and Transformation,Revenue,Supplies And Services
http://www.ons.gov.uk/ons/guide-method/geography/products/names--codes-and-look-ups/names-and-codes-listings/names-and-codes-for-administrative-geography/index.html,Thanet District Council,03/09/2013,344354,3750,Kent County Council Re Pension Fund,KCC001,Director of Corporate Services and Transformation,Revenue,Employees
http://www.ons.gov.uk/ons/guide-method/geography/products/names--codes-and-look-ups/names-and-codes-listings/names-and-codes-for-administrative-geography/index.html,Thanet District Council,03/09/2013,344778,65.68,Legacy Telecom Ltd,LEG004,Director of Community Services,Revenue,Supplies And Services
http://www.ons.gov.uk/ons/guide-method/geography/products/names--codes-and-look-ups/names-and-codes-listings/names-and-codes-for-administrative-geography/index.html,Thanet District Council,03/09/2013,344778,132.33,Legacy Telecom Ltd,LEG004,Chief Executive and S151,Revenue,Supplies And Services
http://www.ons.gov.uk/ons/guide-method/geography/products/names--codes-and-look-ups/names-and-codes-listings/names-and-codes-for-administrative-geography/index.html,Thanet District Council,03/09/2013,344778,198.49,Legacy Telecom Ltd,LEG004,East Kent Shared Services,Revenue,Supplies And Services
http://www.ons.gov.uk/ons/guide-method/geography/products/names--codes-and-look-ups/names-and-codes-listings/names-and-codes-for-administrative-geography/index.html,Thanet District Council,03/09/2013,344778,198.5,Legacy Telecom Ltd,LEG004,Director of Operational Services,Revenue,Supplies And Services
http://www.ons.gov.uk/ons/guide-method/geography/products/names--codes-and-look-ups/names-and-codes-listings/names-and-codes-for-administrative-geography/index.html,Thanet District Council,03/09/2013,344108,292.5,M T Coleman,COL029,Director of Operational Services,Revenue,Premises Related Expenditure
http://www.ons.gov.uk/ons/guide-method/geography/products/names--codes-and-look-ups/names-and-codes-listings/names-and-codes-for-administrative-geography/index.html,Thanet District Council,03/09/2013,344696,397.68,Mears Ltd,MEA003,Director of Operational Services,Revenue,Premises Related Expenditure
http://www.ons.gov.uk/ons/guide-method/geography/products/names--codes-and-look-ups/names-and-codes-listings/names-and-codes-for-administrative-geography/index.html,Thanet District Council,03/09/2013,344697,2497.34,Mears Ltd,MEA003,Director of Operational Services,Revenue,Premises Related Expenditure
http://www.ons.gov.uk/ons/guide-method/geography/products/names--codes-and-look-ups/names-and-codes-listings/names-and-codes-for-administrative-geography/index.html,Thanet District Council,03/09/2013,344698,1217.18,Mears Ltd,MEA003,Director of Operational Services,Revenue,Premises Related Expenditure
http://www.ons.gov.uk/ons/guide-method/geography/products/names--codes-and-look-ups/names-and-codes-listings/names-and-codes-for-administrative-geography/index.html,Thanet District Council,03/09/2013,344699,2314.59,Mears Ltd,MEA003,Director of Operational Services,Revenue,Premises Related Expenditure
http://www.ons.gov.uk/ons/guide-method/geography/products/names--codes-and-look-ups/names-and-codes-listings/names-and-codes-for-administrative-geography/index.html,Thanet District Council,03/09/2013,344684,1016.5,Michael Page Finance,PAG008,Director of Corporate Services and Transformation,Revenue,Employees
http://www.ons.gov.uk/ons/guide-method/geography/products/names--codes-and-look-ups/names-and-codes-listings/names-and-codes-for-administrative-geography/index.html,Thanet District Council,03/09/2013,344685,465.81,Morgan Jones Ltd,MOR001,East Kent Shared Services,Revenue,Employees
http://www.ons.gov.uk/ons/guide-method/geography/products/names--codes-and-look-ups/names-and-codes-listings/names-and-codes-for-administrative-geography/index.html,Thanet District Council,03/09/2013,344435,465,Northgate Inf Solutions Uk Ltd,NOR018,East Kent Shared Services,Revenue,Supplies And Services
http://www.ons.gov.uk/ons/guide-method/geography/products/names--codes-and-look-ups/names-and-codes-listings/names-and-codes-for-administrative-geography/index.html,Thanet District Council,03/09/2013,344529,445.75,O2 (Uk) Ltd,O2U001,Director of Operational Services,Revenue,Supplies And Services
http://www.ons.gov.uk/ons/guide-method/geography/products/names--codes-and-look-ups/names-and-codes-listings/names-and-codes-for-administrative-geography/index.html,Thanet District Council,03/09/2013,344177,575.22,Ocs Group Uk Ltd T/A Fountains,OCS005,Director of Operational Services,Revenue,Premises Related Expenditure
http://www.ons.gov.uk/ons/guide-method/geography/products/names--codes-and-look-ups/names-and-codes-listings/names-and-codes-for-administrative-geography/index.html,Thanet District Council,03/09/2013,344178,875.69,Ocs Group Uk Ltd T/A Fountains,OCS005,Director of Operational Services,Revenue,Premises Related Expenditure
http://www.ons.gov.uk/ons/guide-method/geography/products/names--codes-and-look-ups/names-and-codes-listings/names-and-codes-for-administrative-geography/index.html,Thanet District Council,03/09/2013,344179,253.11,Ocs Group Uk Ltd T/A Fountains,OCS005,Director of Operational Services,Revenue,Premises Related Expenditure
http://www.ons.gov.uk/ons/guide-method/geography/products/names--codes-and-look-ups/names-and-codes-listings/names-and-codes-for-administrative-geography/index.html,Thanet District Council,03/09/2013,344181,782.05,Ocs Group Uk Ltd T/A Fountains,OCS005,Director of Operational Services,Revenue,Premises Related Expenditure
http://www.ons.gov.uk/ons/guide-method/geography/products/names--codes-and-look-ups/names-and-codes-listings/names-and-codes-for-administrative-geography/index.html,Thanet District Council,03/09/2013,344438,434.24,Pcm Fluid Power Ltd,PCM001,Director of Operational Services,Revenue,Transport Related Expenditure
http://www.ons.gov.uk/ons/guide-method/geography/products/names--codes-and-look-ups/names-and-codes-listings/names-and-codes-for-administrative-geography/index.html,Thanet District Council,03/09/2013,344516,229.27,Phoenix Software Ltd,PHO002,East Kent Shared Services,Revenue,Supplies And Services
http://www.ons.gov.uk/ons/guide-method/geography/products/names--codes-and-look-ups/names-and-codes-listings/names-and-codes-for-administrative-geography/index.html,Thanet District Council,03/09/2013,344706,235.13,Phoenix Software Ltd,PHO002,Director of Corporate Services and Transformation,Revenue,Supplies And Services
http://www.ons.gov.uk/ons/guide-method/geography/products/names--codes-and-look-ups/names-and-codes-listings/names-and-codes-for-administrative-geography/index.html,Thanet District Council,03/09/2013,344707,235.13,Phoenix Software Ltd,PHO002,Director of Corporate Services and Transformation,Revenue,Supplies And Services
http://www.ons.gov.uk/ons/guide-method/geography/products/names--codes-and-look-ups/names-and-codes-listings/names-and-codes-for-administrative-geography/index.html,Thanet District Council,03/09/2013,344708,235.13,Phoenix Software Ltd,PHO002,Director of Corporate Services and Transformation,Revenue,Supplies And Services
http://www.ons.gov.uk/ons/guide-method/geography/products/names--codes-and-look-ups/names-and-codes-listings/names-and-codes-for-administrative-geography/index.html,Thanet District Council,03/09/2013,344709,235.13,Phoenix Software Ltd,PHO002,Director of Corporate Services and Transformation,Revenue,Supplies And Services
http://www.ons.gov.uk/ons/guide-method/geography/products/names--codes-and-look-ups/names-and-codes-listings/names-and-codes-for-administrative-geography/index.html,Thanet District Council,03/09/2013,344710,1174.2,Phoenix Software Ltd,PHO002,East Kent Shared Services,Revenue,Supplies And Services
http://www.ons.gov.uk/ons/guide-method/geography/products/names--codes-and-look-ups/names-and-codes-listings/names-and-codes-for-administrative-geography/index.html,Thanet District Council,03/09/2013,344517,2778,Probrand Ltd,PRO012,Director of Corporate Services and Transformation,Revenue,Supplies And Services
http://www.ons.gov.uk/ons/guide-method/geography/products/names--codes-and-look-ups/names-and-codes-listings/names-and-codes-for-administrative-geography/index.html,Thanet District Council,03/09/2013,343560,300,R J Broadley Tree Surgery,RJB002,Director of Corporate Services and Transformation,Balance Sheet,Current Assets
http://www.ons.gov.uk/ons/guide-method/geography/products/names--codes-and-look-ups/names-and-codes-listings/names-and-codes-for-administrative-geography/index.html,Thanet District Council,03/09/2013,344067,400,Rics,RIC007,Director of Operational Services,Revenue,Premises Related Expenditure
http://www.ons.gov.uk/ons/guide-method/geography/products/names--codes-and-look-ups/names-and-codes-listings/names-and-codes-for-administrative-geography/index.html,Thanet District Council,03/09/2013,344840,408.5,Sba Ltd,SBA001,Director of Operational Services,Revenue,Premises Related Expenditure
http://www.ons.gov.uk/ons/guide-method/geography/products/names--codes-and-look-ups/names-and-codes-listings/names-and-codes-for-administrative-geography/index.html,Thanet District Council,03/09/2013,344311,414.68,Signway Supplies (Datchet) Limited,SIG013,Director of Operational Services,Revenue,Premises Related Expenditure
http://www.ons.gov.uk/ons/guide-method/geography/products/names--codes-and-look-ups/names-and-codes-listings/names-and-codes-for-administrative-geography/index.html,Thanet District Council,03/09/2013,344118,536.25,Southern Electric,SEL007,Director of Community Services,Revenue,Premises Related Expenditure
http://www.ons.gov.uk/ons/guide-method/geography/products/names--codes-and-look-ups/names-and-codes-listings/names-and-codes-for-administrative-geography/index.html,Thanet District Council,03/09/2013,344119,748.24,Southern Electric,SEL007,Director of Community Services,Revenue,Premises Related Expenditure
http://www.ons.gov.uk/ons/guide-method/geography/products/names--codes-and-look-ups/names-and-codes-listings/names-and-codes-for-administrative-geography/index.html,Thanet District Council,03/09/2013,344418,2409.48,Southern Electric,SEL007,Director of Community Services,Revenue,Premises Related Expenditure
http://www.ons.gov.uk/ons/guide-method/geography/products/names--codes-and-look-ups/names-and-codes-listings/names-and-codes-for-administrative-geography/index.html,Thanet District Council,03/09/2013,344419,1676.78,Southern Electric,SEL007,Director of Community Services,Revenue,Premises Related Expenditure
http://www.ons.gov.uk/ons/guide-method/geography/products/names--codes-and-look-ups/names-and-codes-listings/names-and-codes-for-administrative-geography/index.html,Thanet District Council,03/09/2013,344490,1575.76,Southern Electric,SEL007,Director of Operational Services,Revenue,Premises Related Expenditure
http://www.ons.gov.uk/ons/guide-method/geography/products/names--codes-and-look-ups/names-and-codes-listings/names-and-codes-for-administrative-geography/index.html,Thanet District Council,03/09/2013,344491,760.37,Southern Electric,SEL007,Director of Operational Services,Revenue,Premises Related Expenditure
http://www.ons.gov.uk/ons/guide-method/geography/products/names--codes-and-look-ups/names-and-codes-listings/names-and-codes-for-administrative-geography/index.html,Thanet District Council,03/09/2013,344495,2429.2,Southern Electric,SEL007,Director of Community Services,Revenue,Premises Related Expenditure
http://www.ons.gov.uk/ons/guide-method/geography/products/names--codes-and-look-ups/names-and-codes-listings/names-and-codes-for-administrative-geography/index.html,Thanet District Council,03/09/2013,344498,2409.48,Southern Electric,SEL007,Director of Community Services,Revenue,Premises Related Expenditure
http://www.ons.gov.uk/ons/guide-method/geography/products/names--codes-and-look-ups/names-and-codes-listings/names-and-codes-for-administrative-geography/index.html,Thanet District Council,03/09/2013,344499,1591.78,Southern Electric,SEL007,Director of Community Services,Revenue,Premises Related Expenditure
http://www.ons.gov.uk/ons/guide-method/geography/products/names--codes-and-look-ups/names-and-codes-listings/names-and-codes-for-administrative-geography/index.html,Thanet District Council,03/09/2013,344500,263.13,Southern Electric,SEL007,Director of Community Services,Revenue,Premises Related Expenditure
http://www.ons.gov.uk/ons/guide-method/geography/products/names--codes-and-look-ups/names-and-codes-listings/names-and-codes-for-administrative-geography/index.html,Thanet District Council,03/09/2013,344504,368.58,Southern Electric,SEL007,Director of Operational Services,Revenue,Premises Related Expenditure
http://www.ons.gov.uk/ons/guide-method/geography/products/names--codes-and-look-ups/names-and-codes-listings/names-and-codes-for-administrative-geography/index.html,Thanet District Council,03/09/2013,344506,362.91,Southern Electric,SEL007,Director of Operational Services,Revenue,Premises Related Expenditure
http://www.ons.gov.uk/ons/guide-method/geography/products/names--codes-and-look-ups/names-and-codes-listings/names-and-codes-for-administrative-geography/index.html,Thanet District Council,03/09/2013,344508,415.18,Southern Electric,SEL007,Director of Operational Services,Revenue,Premises Related Expenditure
http://www.ons.gov.uk/ons/guide-method/geography/products/names--codes-and-look-ups/names-and-codes-listings/names-and-codes-for-administrative-geography/index.html,Thanet District Council,03/09/2013,344510,784.08,Southern Electric,SEL007,Director of Operational Services,Revenue,Premises Related Expenditure
http://www.ons.gov.uk/ons/guide-method/geography/products/names--codes-and-look-ups/names-and-codes-listings/names-and-codes-for-administrative-geography/index.html,Thanet District Council,03/09/2013,344807,281.18,Southern Electric,SEL007,Director of Operational Services,Revenue,Premises Related Expenditure
http://www.ons.gov.uk/ons/guide-method/geography/products/names--codes-and-look-ups/names-and-codes-listings/names-and-codes-for-administrative-geography/index.html,Thanet District Council,03/09/2013,344410,405.91,Southern Water,SWA001,Director of Operational Services,Revenue,Premises Related Expenditure
http://www.ons.gov.uk/ons/guide-method/geography/products/names--codes-and-look-ups/names-and-codes-listings/names-and-codes-for-administrative-geography/index.html,Thanet District Council,03/09/2013,344411,522.31,Southern Water,SWA001,Director of Operational Services,Revenue,Premises Related Expenditure
http://www.ons.gov.uk/ons/guide-method/geography/products/names--codes-and-look-ups/names-and-codes-listings/names-and-codes-for-administrative-geography/index.html,Thanet District Council,03/09/2013,344801,1794.41,Southern Water,SWA001,Director of Operational Services,Revenue,Premises Related Expenditure
http://www.ons.gov.uk/ons/guide-method/geography/products/names--codes-and-look-ups/names-and-codes-listings/names-and-codes-for-administrative-geography/index.html,Thanet District Council,03/09/2013,344867,1000,Strategic Integration Limited,STR037,Director of Corporate Services and Transformation,Revenue,Supplies And Services
http://www.ons.gov.uk/ons/guide-method/geography/products/names--codes-and-look-ups/names-and-codes-listings/names-and-codes-for-administrative-geography/index.html,Thanet District Council,03/09/2013,344174,397.3,Supplies Team,SUP001,Director of Operational Services,Revenue,Supplies And Services
http://www.ons.gov.uk/ons/guide-method/geography/products/names--codes-and-look-ups/names-and-codes-listings/names-and-codes-for-administrative-geography/index.html,Thanet District Council,03/09/2013,344859,21.1,Supplies Team,SUP001,Director of Community Services,Revenue,Supplies And Services
http://www.ons.gov.uk/ons/guide-method/geography/products/names--codes-and-look-ups/names-and-codes-listings/names-and-codes-for-administrative-geography/index.html,Thanet District Council,03/09/2013,343906,21571.97,T Loughman & Co Limited,LOU003,Director of Corporate Services and Transformation,Balance Sheet,Long Term Assets
http://www.ons.gov.uk/ons/guide-method/geography/products/names--codes-and-look-ups/names-and-codes-listings/names-and-codes-for-administrative-geography/index.html,Thanet District Council,03/09/2013,344364,223.2,Thanet Waste Services Ltd,TWA001,Director of Operational Services,Revenue,Third Party Payments
http://www.ons.gov.uk/ons/guide-method/geography/products/names--codes-and-look-ups/names-and-codes-listings/names-and-codes-for-administrative-geography/index.html,Thanet District Council,03/09/2013,344011,451.73,Total Supplies Ltd,TOT009,Director of Corporate Services and Transformation,Balance Sheet,Current Liabilities
http://www.ons.gov.uk/ons/guide-method/geography/products/names--codes-and-look-ups/names-and-codes-listings/names-and-codes-for-administrative-geography/index.html,Thanet District Council,03/09/2013,343817,202.44,Veolia Es (Uk) Ltd,VEO001,Director of Corporate Services and Transformation,Balance Sheet,Current Assets
http://www.ons.gov.uk/ons/guide-method/geography/products/names--codes-and-look-ups/names-and-codes-listings/names-and-codes-for-administrative-geography/index.html,Thanet District Council,03/09/2013,343817,2195.72,Veolia Es (Uk) Ltd,VEO001,Director of Operational Services,Revenue,Premises Related Expenditure
http://www.ons.gov.uk/ons/guide-method/geography/products/names--codes-and-look-ups/names-and-codes-listings/names-and-codes-for-administrative-geography/index.html,Thanet District Council,03/09/2013,344478,8562.65,Vodafone Limited (Corporate),VOD001,Director of Corporate Services and Transformation,Balance Sheet,Current Assets
http://www.ons.gov.uk/ons/guide-method/geography/products/names--codes-and-look-ups/names-and-codes-listings/names-and-codes-for-administrative-geography/index.html,Thanet District Council,03/09/2013,343804,450,W Brazil & Bros,BRA001,Director of Corporate Services and Transformation,Balance Sheet,Current Assets
http://www.ons.gov.uk/ons/guide-method/geography/products/names--codes-and-look-ups/names-and-codes-listings/names-and-codes-for-administrative-geography/index.html,Thanet District Council,03/09/2013,344477,446.63,W G Burbridge,BUR016,Director of Operational Services,Revenue,Premises Related Expenditure
http://www.ons.gov.uk/ons/guide-method/geography/products/names--codes-and-look-ups/names-and-codes-listings/names-and-codes-for-administrative-geography/index.html,Thanet District Council,03/09/2013,344312,295,Walker Construction (Uk) Ltd,WAL001,Director of Operational Services,Revenue,Employees
http://www.ons.gov.uk/ons/guide-method/geography/products/names--codes-and-look-ups/names-and-codes-listings/names-and-codes-for-administrative-geography/index.html,Thanet District Council,03/09/2013,344359,526.39,Xma Ltd,XMA001,East Kent Shared Services,Revenue,Supplies And Services
http://www.ons.gov.uk/ons/guide-method/geography/products/names--codes-and-look-ups/names-and-codes-listings/names-and-codes-for-administrative-geography/index.html,Thanet District Council,04/09/2013,343883,6500,Campbell Reith Hill Llp,CAM013,Director of Corporate Services and Transformation,Balance Sheet,Long Term Assets
http://www.ons.gov.uk/ons/guide-method/geography/products/names--codes-and-look-ups/names-and-codes-listings/names-and-codes-for-administrative-geography/index.html,Thanet District Council,04/09/2013,343810,50487.8,F M Conway Ltd,CON043,Director of Corporate Services and Transformation,Balance Sheet,Long Term Assets
http://www.ons.gov.uk/ons/guide-method/geography/products/names--codes-and-look-ups/names-and-codes-listings/names-and-codes-for-administrative-geography/index.html,Thanet District Council,04/09/2013,345012,195000,Gershon & Goldstein,GER003,Director of Corporate Services and Transformation,Balance Sheet,Long Term Assets
http://www.ons.gov.uk/ons/guide-method/geography/products/names--codes-and-look-ups/names-and-codes-listings/names-and-codes-for-administrative-geography/index.html,Thanet District Council,04/09/2013,343884,5000,Guy Hollaway Architects Llp,HOL024,Director of Corporate Services and Transformation,Balance Sheet,Long Term Assets
http://www.ons.gov.uk/ons/guide-method/geography/products/names--codes-and-look-ups/names-and-codes-listings/names-and-codes-for-administrative-geography/index.html,Thanet District Council,04/09/2013,343189,1974,Swale Heating Ltd,SWA006,Director of Corporate Services and Transformation,Balance Sheet,Current Assets
http://www.ons.gov.uk/ons/guide-method/geography/products/names--codes-and-look-ups/names-and-codes-listings/names-and-codes-for-administrative-geography/index.html,Thanet District Council,04/09/2013,343190,3170,Swale Heating Ltd,SWA006,Director of Corporate Services and Transformation,Balance Sheet,Current Assets
http://www.ons.gov.uk/ons/guide-method/geography/products/names--codes-and-look-ups/names-and-codes-listings/names-and-codes-for-administrative-geography/index.html,Thanet District Council,04/09/2013,343191,1539,Swale Heating Ltd,SWA006,Director of Corporate Services and Transformation,Balance Sheet,Current Assets
http://www.ons.gov.uk/ons/guide-method/geography/products/names--codes-and-look-ups/names-and-codes-listings/names-and-codes-for-administrative-geography/index.html,Thanet District Council,04/09/2013,343192,1669,Swale Heating Ltd,SWA006,Director of Corporate Services and Transformation,Balance Sheet,Current Assets
http://www.ons.gov.uk/ons/guide-method/geography/products/names--codes-and-look-ups/names-and-codes-listings/names-and-codes-for-administrative-geography/index.html,Thanet District Council,04/09/2013,343193,2079,Swale Heating Ltd,SWA006,Director of Corporate Services and Transformation,Balance Sheet,Current Assets
http://www.ons.gov.uk/ons/guide-method/geography/products/names--codes-and-look-ups/names-and-codes-listings/names-and-codes-for-administrative-geography/index.html,Thanet District Council,04/09/2013,343194,1539,Swale Heating Ltd,SWA006,Director of Corporate Services and Transformation,Balance Sheet,Current Assets
http://www.ons.gov.uk/ons/guide-method/geography/products/names--codes-and-look-ups/names-and-codes-listings/names-and-codes-for-administrative-geography/index.html,Thanet District Council,04/09/2013,343195,712,Swale Heating Ltd,SWA006,Director of Corporate Services and Transformation,Balance Sheet,Current Assets
http://www.ons.gov.uk/ons/guide-method/geography/products/names--codes-and-look-ups/names-and-codes-listings/names-and-codes-for-administrative-geography/index.html,Thanet District Council,04/09/2013,343196,1785,Swale Heating Ltd,SWA006,Director of Corporate Services and Transformation,Balance Sheet,Current Assets
http://www.ons.gov.uk/ons/guide-method/geography/products/names--codes-and-look-ups/names-and-codes-listings/names-and-codes-for-administrative-geography/index.html,Thanet District Council,04/09/2013,343197,1669,Swale Heating Ltd,SWA006,Director of Corporate Services and Transformation,Balance Sheet,Current Assets
http://www.ons.gov.uk/ons/guide-method/geography/products/names--codes-and-look-ups/names-and-codes-listings/names-and-codes-for-administrative-geography/index.html,Thanet District Council,04/09/2013,343198,1539,Swale Heating Ltd,SWA006,Director of Corporate Services and Transformation,Balance Sheet,Current Assets
http://www.ons.gov.uk/ons/guide-method/geography/products/names--codes-and-look-ups/names-and-codes-listings/names-and-codes-for-administrative-geography/index.html,Thanet District Council,04/09/2013,343199,1545,Swale Heating Ltd,SWA006,Director of Corporate Services and Transformation,Balance Sheet,Current Assets
http://www.ons.gov.uk/ons/guide-method/geography/products/names--codes-and-look-ups/names-and-codes-listings/names-and-codes-for-administrative-geography/index.html,Thanet District Council,04/09/2013,343200,1669,Swale Heating Ltd,SWA006,Director of Corporate Services and Transformation,Balance Sheet,Current Assets
http://www.ons.gov.uk/ons/guide-method/geography/products/names--codes-and-look-ups/names-and-codes-listings/names-and-codes-for-administrative-geography/index.html,Thanet District Council,04/09/2013,343201,1730,Swale Heating Ltd,SWA006,Director of Corporate Services and Transformation,Balance Sheet,Current Assets
http://www.ons.gov.uk/ons/guide-method/geography/products/names--codes-and-look-ups/names-and-codes-listings/names-and-codes-for-administrative-geography/index.html,Thanet District Council,04/09/2013,343202,1739,Swale Heating Ltd,SWA006,Director of Corporate Services and Transformation,Balance Sheet,Current Assets
http://www.ons.gov.uk/ons/guide-method/geography/products/names--codes-and-look-ups/names-and-codes-listings/names-and-codes-for-administrative-geography/index.html,Thanet District Council,04/09/2013,343203,2050,Swale Heating Ltd,SWA006,Director of Corporate Services and Transformation,Balance Sheet,Current Assets
http://www.ons.gov.uk/ons/guide-method/geography/products/names--codes-and-look-ups/names-and-codes-listings/names-and-codes-for-administrative-geography/index.html,Thanet District Council,04/09/2013,343204,1539,Swale Heating Ltd,SWA006,Director of Corporate Services and Transformation,Balance Sheet,Current Assets
http://www.ons.gov.uk/ons/guide-method/geography/products/names--codes-and-look-ups/names-and-codes-listings/names-and-codes-for-administrative-geography/index.html,Thanet District Council,04/09/2013,343205,2095,Swale Heating Ltd,SWA006,Director of Corporate Services and Transformation,Balance Sheet,Current Assets
http://www.ons.gov.uk/ons/guide-method/geography/products/names--codes-and-look-ups/names-and-codes-listings/names-and-codes-for-administrative-geography/index.html,Thanet District Council,04/09/2013,343206,-1539,Swale Heating Ltd,SWA006,Director of Corporate Services and Transformation,Balance Sheet,Current Assets
http://www.ons.gov.uk/ons/guide-method/geography/products/names--codes-and-look-ups/names-and-codes-listings/names-and-codes-for-administrative-geography/index.html,Thanet District Council,04/09/2013,343207,24618.46,Swale Heating Ltd,SWA006,Director of Corporate Services and Transformation,Balance Sheet,Current Assets
http://www.ons.gov.uk/ons/guide-method/geography/products/names--codes-and-look-ups/names-and-codes-listings/names-and-codes-for-administrative-geography/index.html,Thanet District Council,10/09/2013,344824,261,1415 Limited,141001,Director of Operational Services,Revenue,Supplies And Services
http://www.ons.gov.uk/ons/guide-method/geography/products/names--codes-and-look-ups/names-and-codes-listings/names-and-codes-for-administrative-geography/index.html,Thanet District Council,10/09/2013,344841,1100,Advanced Business Solutions,COA011,East Kent Shared Services,Revenue,Supplies And Services
http://www.ons.gov.uk/ons/guide-method/geography/products/names--codes-and-look-ups/names-and-codes-listings/names-and-codes-for-administrative-geography/index.html,Thanet District Council,10/09/2013,344820,670,All Sign Solutions Ltd,ALL002,Director of Corporate Services and Transformation,Revenue,Supplies And Services
http://www.ons.gov.uk/ons/guide-method/geography/products/names--codes-and-look-ups/names-and-codes-listings/names-and-codes-for-administrative-geography/index.html,Thanet District Council,10/09/2013,345106,392.28,Allstar Business Solutions Ltd,ALL038,Director of Operational Services,Revenue,Transport Related Expenditure
http://www.ons.gov.uk/ons/guide-method/geography/products/names--codes-and-look-ups/names-and-codes-listings/names-and-codes-for-administrative-geography/index.html,Thanet District Council,10/09/2013,344471,1040,Andy Morris,MOR028,Director of Community Services,Revenue,Supplies And Services
http://www.ons.gov.uk/ons/guide-method/geography/products/names--codes-and-look-ups/names-and-codes-listings/names-and-codes-for-administrative-geography/index.html,Thanet District Council,10/09/2013,344871,2000,Ascendit Lifts Ltd,ASC001,Director of Corporate Services and Transformation,Balance Sheet,Long Term Assets
http://www.ons.gov.uk/ons/guide-method/geography/products/names--codes-and-look-ups/names-and-codes-listings/names-and-codes-for-administrative-geography/index.html,Thanet District Council,10/09/2013,344894,719.1,Asset Security & Protection Ltd,ASS015,Director of Community Services,Revenue,Supplies And Services
http://www.ons.gov.uk/ons/guide-method/geography/products/names--codes-and-look-ups/names-and-codes-listings/names-and-codes-for-administrative-geography/index.html,Thanet District Council,10/09/2013,345207,4557.68,Better Beaches Ltd,BET009,Director of Operational Services,Revenue,Supplies And Services
http://www.ons.gov.uk/ons/guide-method/geography/products/names--codes-and-look-ups/names-and-codes-listings/names-and-codes-for-administrative-geography/index.html,Thanet District Council,10/09/2013,344780,312.48,Brandon Hire Plc,BRA005,Director of Operational Services,Revenue,Supplies And Services
http://www.ons.gov.uk/ons/guide-method/geography/products/names--codes-and-look-ups/names-and-codes-listings/names-and-codes-for-administrative-geography/index.html,Thanet District Council,10/09/2013,344767,819.75,Bridge Security Cctv Ltd,BRI039,Director of Operational Services,Revenue,Supplies And Services
http://www.ons.gov.uk/ons/guide-method/geography/products/names--codes-and-look-ups/names-and-codes-listings/names-and-codes-for-administrative-geography/index.html,Thanet District Council,10/09/2013,345024,302.27,Capt G Tully,TUL001,Director of Operational Services,Revenue,Supplies And Services
http://www.ons.gov.uk/ons/guide-method/geography/products/names--codes-and-look-ups/names-and-codes-listings/names-and-codes-for-administrative-geography/index.html,Thanet District Council,10/09/2013,345025,268.3,Channel Commercials Plc,CCO001,Director of Operational Services,Revenue,Transport Related Expenditure
http://www.ons.gov.uk/ons/guide-method/geography/products/names--codes-and-look-ups/names-and-codes-listings/names-and-codes-for-administrative-geography/index.html,Thanet District Council,10/09/2013,345034,441.44,Cobalt Telephone Technologies Ltd,COB002,Director of Operational Services,Revenue,Supplies And Services
http://www.ons.gov.uk/ons/guide-method/geography/products/names--codes-and-look-ups/names-and-codes-listings/names-and-codes-for-administrative-geography/index.html,Thanet District Council,10/09/2013,344882,1496.79,Complete Moling Services (S E) Ltd,COM050,Director of Operational Services,Revenue,Premises Related Expenditure
http://www.ons.gov.uk/ons/guide-method/geography/products/names--codes-and-look-ups/names-and-codes-listings/names-and-codes-for-administrative-geography/index.html,Thanet District Council,10/09/2013,345188,8337.53,Connoisseur Renovations,CON037,Director of Corporate Services and Transformation,Balance Sheet,Long Term Assets
http://www.ons.gov.uk/ons/guide-method/geography/products/names--codes-and-look-ups/names-and-codes-listings/names-and-codes-for-administrative-geography/index.html,Thanet District Council,10/09/2013,344763,227.33,Data Integration,DAT006,East Kent Shared Services,Revenue,Supplies And Services
http://www.ons.gov.uk/ons/guide-method/geography/products/names--codes-and-look-ups/names-and-codes-listings/names-and-codes-for-administrative-geography/index.html,Thanet District Council,10/09/2013,344892,4800,Dolphin Lifts Kent,DOL003,Director of Corporate Services and Transformation,Balance Sheet,Long Term Assets
http://www.ons.gov.uk/ons/guide-method/geography/products/names--codes-and-look-ups/names-and-codes-listings/names-and-codes-for-administrative-geography/index.html,Thanet District Council,10/09/2013,345122,15564.4,Dover District Council,DOV001,East Kent Shared Services,Revenue,Supplies And Services
http://www.ons.gov.uk/ons/guide-method/geography/products/names--codes-and-look-ups/names-and-codes-listings/names-and-codes-for-administrative-geography/index.html,Thanet District Council,10/09/2013,344885,2725,Dr R K Chhabra,CHH001,Director of Operational Services,Revenue,Supplies And Services
http://www.ons.gov.uk/ons/guide-method/geography/products/names--codes-and-look-ups/names-and-codes-listings/names-and-codes-for-administrative-geography/index.html,Thanet District Council,10/09/2013,344741,2256.85,Dx Network Services Ltd,DXN001,Director of Corporate Services and Transformation,Revenue,Supplies And Services
http://www.ons.gov.uk/ons/guide-method/geography/products/names--codes-and-look-ups/names-and-codes-listings/names-and-codes-for-administrative-geography/index.html,Thanet District Council,10/09/2013,344027,267.99,E Saunders Margate Ltd,SAU001,Director of Operational Services,Revenue,Premises Related Expenditure
http://www.ons.gov.uk/ons/guide-method/geography/products/names--codes-and-look-ups/names-and-codes-listings/names-and-codes-for-administrative-geography/index.html,Thanet District Council,10/09/2013,345030,6081.06,Electrical Lighting Solutions Ltd,ELE013,Director of Corporate Services and Transformation,Balance Sheet,Current Assets
http://www.ons.gov.uk/ons/guide-method/geography/products/names--codes-and-look-ups/names-and-codes-listings/names-and-codes-for-administrative-geography/index.html,Thanet District Council,10/09/2013,345031,2244.52,Electrical Lighting Solutions Ltd,ELE013,Director of Operational Services,Revenue,Premises Related Expenditure
http://www.ons.gov.uk/ons/guide-method/geography/products/names--codes-and-look-ups/names-and-codes-listings/names-and-codes-for-administrative-geography/index.html,Thanet District Council,10/09/2013,344869,355,Evermech Ltd,EVE011,Director of Corporate Services and Transformation,Balance Sheet,Long Term Assets
http://www.ons.gov.uk/ons/guide-method/geography/products/names--codes-and-look-ups/names-and-codes-listings/names-and-codes-for-administrative-geography/index.html,Thanet District Council,10/09/2013,345192,6431,Evermech Ltd,EVE011,Director of Corporate Services and Transformation,Balance Sheet,Long Term Assets
http://www.ons.gov.uk/ons/guide-method/geography/products/names--codes-and-look-ups/names-and-codes-listings/names-and-codes-for-administrative-geography/index.html,Thanet District Council,10/09/2013,344870,970.13,Family Mosaic Housing,FAM001,Director of Corporate Services and Transformation,Balance Sheet,Long Term Assets
http://www.ons.gov.uk/ons/guide-method/geography/products/names--codes-and-look-ups/names-and-codes-listings/names-and-codes-for-administrative-geography/index.html,Thanet District Council,10/09/2013,344872,683.2,Family Mosaic Housing,FAM001,Director of Corporate Services and Transformation,Balance Sheet,Long Term Assets
http://www.ons.gov.uk/ons/guide-method/geography/products/names--codes-and-look-ups/names-and-codes-listings/names-and-codes-for-administrative-geography/index.html,Thanet District Council,10/09/2013,344874,1170.4,Family Mosaic Housing,FAM001,Director of Corporate Services and Transformation,Balance Sheet,Long Term Assets
http://www.ons.gov.uk/ons/guide-method/geography/products/names--codes-and-look-ups/names-and-codes-listings/names-and-codes-for-administrative-geography/index.html,Thanet District Council,10/09/2013,344893,2210.8,Family Mosaic Housing,FAM001,Director of Corporate Services and Transformation,Balance Sheet,Long Term Assets
http://www.ons.gov.uk/ons/guide-method/geography/products/names--codes-and-look-ups/names-and-codes-listings/names-and-codes-for-administrative-geography/index.html,Thanet District Council,10/09/2013,345187,1061.8,Family Mosaic Housing,FAM001,Director of Corporate Services and Transformation,Balance Sheet,Long Term Assets
http://www.ons.gov.uk/ons/guide-method/geography/products/names--codes-and-look-ups/names-and-codes-listings/names-and-codes-for-administrative-geography/index.html,Thanet District Council,10/09/2013,345189,775.72,Family Mosaic Housing,FAM001,Director of Corporate Services and Transformation,Balance Sheet,Long Term Assets
http://www.ons.gov.uk/ons/guide-method/geography/products/names--codes-and-look-ups/names-and-codes-listings/names-and-codes-for-administrative-geography/index.html,Thanet District Council,10/09/2013,345191,3651.92,Family Mosaic Housing,FAM001,Director of Corporate Services and Transformation,Balance Sheet,Long Term Assets
http://www.ons.gov.uk/ons/guide-method/geography/products/names--codes-and-look-ups/names-and-codes-listings/names-and-codes-for-administrative-geography/index.html,Thanet District Council,10/09/2013,344452,4261.8,Fuel Oils Kent,FUE001,Director of Operational Services,Revenue,Supplies And Services
http://www.ons.gov.uk/ons/guide-method/geography/products/names--codes-and-look-ups/names-and-codes-listings/names-and-codes-for-administrative-geography/index.html,Thanet District Council,10/09/2013,344860,3531.53,Fuel Oils Kent,FUE001,Director of Operational Services,Revenue,Supplies And Services
http://www.ons.gov.uk/ons/guide-method/geography/products/names--codes-and-look-ups/names-and-codes-listings/names-and-codes-for-administrative-geography/index.html,Thanet District Council,10/09/2013,344861,2951.5,Fuel Oils Kent,FUE001,Director of Operational Services,Revenue,Supplies And Services
http://www.ons.gov.uk/ons/guide-method/geography/products/names--codes-and-look-ups/names-and-codes-listings/names-and-codes-for-administrative-geography/index.html,Thanet District Council,10/09/2013,344739,6742.92,Future-Tech Sci Ltd,FUT001,Director of Operational Services,Revenue,Premises Related Expenditure
http://www.ons.gov.uk/ons/guide-method/geography/products/names--codes-and-look-ups/names-and-codes-listings/names-and-codes-for-administrative-geography/index.html,Thanet District Council,10/09/2013,345037,300,George Mccabe,MCC001,Director of Operational Services,Revenue,Premises Related Expenditure
http://www.ons.gov.uk/ons/guide-method/geography/products/names--codes-and-look-ups/names-and-codes-listings/names-and-codes-for-administrative-geography/index.html,Thanet District Council,10/09/2013,344797,283.53,Graham,GRA013,Director of Operational Services,Revenue,Supplies And Services
http://www.ons.gov.uk/ons/guide-method/geography/products/names--codes-and-look-ups/names-and-codes-listings/names-and-codes-for-administrative-geography/index.html,Thanet District Council,10/09/2013,344694,625,Hartsdown Leisure Ltd,HAR044,Director of Community Services,Revenue,Premises Related Expenditure
http://www.ons.gov.uk/ons/guide-method/geography/products/names--codes-and-look-ups/names-and-codes-listings/names-and-codes-for-administrative-geography/index.html,Thanet District Council,10/09/2013,344747,3500,Hem Des Llp,HEM007,Director of Corporate Services and Transformation,Balance Sheet,Long Term Assets
http://www.ons.gov.uk/ons/guide-method/geography/products/names--codes-and-look-ups/names-and-codes-listings/names-and-codes-for-administrative-geography/index.html,Thanet District Council,10/09/2013,344481,504.32,Hr Go Recruitment Ltd,HRG002,Director of Operational Services,Revenue,Employees
http://www.ons.gov.uk/ons/guide-method/geography/products/names--codes-and-look-ups/names-and-codes-listings/names-and-codes-for-administrative-geography/index.html,Thanet District Council,10/09/2013,344549,788,Hr Go Recruitment Ltd,HRG002,Director of Operational Services,Revenue,Employees
http://www.ons.gov.uk/ons/guide-method/geography/products/names--codes-and-look-ups/names-and-codes-listings/names-and-codes-for-administrative-geography/index.html,Thanet District Council,10/09/2013,345051,-430.5,Hr Go Recruitment Ltd,HRG002,Director of Operational Services,Revenue,Employees
http://www.ons.gov.uk/ons/guide-method/geography/products/names--codes-and-look-ups/names-and-codes-listings/names-and-codes-for-administrative-geography/index.html,Thanet District Council,10/09/2013,345052,-401.63,Hr Go Recruitment Ltd,HRG002,Director of Operational Services,Revenue,Employees
http://www.ons.gov.uk/ons/guide-method/geography/products/names--codes-and-look-ups/names-and-codes-listings/names-and-codes-for-administrative-geography/index.html,Thanet District Council,10/09/2013,345055,6926.16,Hr Go Recruitment Ltd,HRG002,Director of Operational Services,Revenue,Employees
http://www.ons.gov.uk/ons/guide-method/geography/products/names--codes-and-look-ups/names-and-codes-listings/names-and-codes-for-administrative-geography/index.html,Thanet District Council,10/09/2013,345056,8069.41,Hr Go Recruitment Ltd,HRG002,Director of Operational Services,Revenue,Employees
http://www.ons.gov.uk/ons/guide-method/geography/products/names--codes-and-look-ups/names-and-codes-listings/names-and-codes-for-administrative-geography/index.html,Thanet District Council,10/09/2013,345057,303.75,Hr Go Recruitment Ltd,HRG002,Director of Operational Services,Revenue,Employees
http://www.ons.gov.uk/ons/guide-method/geography/products/names--codes-and-look-ups/names-and-codes-listings/names-and-codes-for-administrative-geography/index.html,Thanet District Council,10/09/2013,345058,897.91,Hr Go Recruitment Ltd,HRG002,Director of Operational Services,Revenue,Employees
http://www.ons.gov.uk/ons/guide-method/geography/products/names--codes-and-look-ups/names-and-codes-listings/names-and-codes-for-administrative-geography/index.html,Thanet District Council,10/09/2013,344886,1504,Idox Software  Limited,IDO001,Director of Community Services,Revenue,Supplies And Services
http://www.ons.gov.uk/ons/guide-method/geography/products/names--codes-and-look-ups/names-and-codes-listings/names-and-codes-for-administrative-geography/index.html,Thanet District Council,10/09/2013,345011,461.77,Intertruck Ltd,INT022,Director of Operational Services,Revenue,Transport Related Expenditure
http://www.ons.gov.uk/ons/guide-method/geography/products/names--codes-and-look-ups/names-and-codes-listings/names-and-codes-for-administrative-geography/index.html,Thanet District Council,10/09/2013,344339,695,Keith Tait,TAI001,Director of Operational Services,Revenue,Premises Related Expenditure
http://www.ons.gov.uk/ons/guide-method/geography/products/names--codes-and-look-ups/names-and-codes-listings/names-and-codes-for-administrative-geography/index.html,Thanet District Council,10/09/2013,344340,1495,Keith Tait,TAI001,Director of Operational Services,Revenue,Premises Related Expenditure
http://www.ons.gov.uk/ons/guide-method/geography/products/names--codes-and-look-ups/names-and-codes-listings/names-and-codes-for-administrative-geography/index.html,Thanet District Council,10/09/2013,344296,24500,Kent County Council,KCC002,Director of Corporate Services and Transformation,Balance Sheet,Current Assets
http://www.ons.gov.uk/ons/guide-method/geography/products/names--codes-and-look-ups/names-and-codes-listings/names-and-codes-for-administrative-geography/index.html,Thanet District Council,10/09/2013,345190,26348.08,Kings Home Improvements,KIN023,Director of Corporate Services and Transformation,Balance Sheet,Long Term Assets
http://www.ons.gov.uk/ons/guide-method/geography/products/names--codes-and-look-ups/names-and-codes-listings/names-and-codes-for-administrative-geography/index.html,Thanet District Council,10/09/2013,344687,755,Komarni,KOM002,Director of Community Services,Revenue,Supplies And Services
http://www.ons.gov.uk/ons/guide-method/geography/products/names--codes-and-look-ups/names-and-codes-listings/names-and-codes-for-administrative-geography/index.html,Thanet District Council,10/09/2013,344814,2276,Liberty Printers(Ar& Rf Reddin) Ltd,LIB002,Director of Operational Services,Revenue,Supplies And Services
http://www.ons.gov.uk/ons/guide-method/geography/products/names--codes-and-look-ups/names-and-codes-listings/names-and-codes-for-administrative-geography/index.html,Thanet District Council,10/09/2013,344749,540,Lisa Sparkes,SPA011,Director of Community Services,Revenue,Supplies And Services
http://www.ons.gov.uk/ons/guide-method/geography/products/names--codes-and-look-ups/names-and-codes-listings/names-and-codes-for-administrative-geography/index.html,Thanet District Council,10/09/2013,344865,850,Maxwells Grounds Maintenance Ltd,MAX002,Director of Operational Services,Revenue,Premises Related Expenditure
http://www.ons.gov.uk/ons/guide-method/geography/products/names--codes-and-look-ups/names-and-codes-listings/names-and-codes-for-administrative-geography/index.html,Thanet District Council,10/09/2013,345059,300,Maxwells Grounds Maintenance Ltd,MAX002,Director of Operational Services,Revenue,Premises Related Expenditure
http://www.ons.gov.uk/ons/guide-method/geography/products/names--codes-and-look-ups/names-and-codes-listings/names-and-codes-for-administrative-geography/index.html,Thanet District Council,10/09/2013,344750,598.27,Mears Ltd,MEA003,Director of Operational Services,Revenue,Premises Related Expenditure
http://www.ons.gov.uk/ons/guide-method/geography/products/names--codes-and-look-ups/names-and-codes-listings/names-and-codes-for-administrative-geography/index.html,Thanet District Council,10/09/2013,344752,526.89,Mears Ltd,MEA003,Director of Community Services,Revenue,Premises Related Expenditure
http://www.ons.gov.uk/ons/guide-method/geography/products/names--codes-and-look-ups/names-and-codes-listings/names-and-codes-for-administrative-geography/index.html,Thanet District Council,10/09/2013,344752,3293.82,Mears Ltd,MEA003,Director of Operational Services,Revenue,Premises Related Expenditure
http://www.ons.gov.uk/ons/guide-method/geography/products/names--codes-and-look-ups/names-and-codes-listings/names-and-codes-for-administrative-geography/index.html,Thanet District Council,10/09/2013,344338,6285.44,Medway Council,MED003,Director of Corporate Services and Transformation,Revenue,Supplies And Services
http://www.ons.gov.uk/ons/guide-method/geography/products/names--codes-and-look-ups/names-and-codes-listings/names-and-codes-for-administrative-geography/index.html,Thanet District Council,10/09/2013,344467,600,Michael A Smith,SMI044,Director of Corporate Services and Transformation,Balance Sheet,Long Term Assets
http://www.ons.gov.uk/ons/guide-method/geography/products/names--codes-and-look-ups/names-and-codes-listings/names-and-codes-for-administrative-geography/index.html,Thanet District Council,10/09/2013,344875,1016.5,Michael Page Finance,PAG008,Director of Corporate Services and Transformation,Revenue,Employees
http://www.ons.gov.uk/ons/guide-method/geography/products/names--codes-and-look-ups/names-and-codes-listings/names-and-codes-for-administrative-geography/index.html,Thanet District Council,10/09/2013,344819,480,Michelle Williams,WIL064,Director of Community Services,Revenue,Supplies And Services
http://www.ons.gov.uk/ons/guide-method/geography/products/names--codes-and-look-ups/names-and-codes-listings/names-and-codes-for-administrative-geography/index.html,Thanet District Council,10/09/2013,344324,552.65,Morgan Jones Ltd,MOR001,East Kent Shared Services,Revenue,Employees
http://www.ons.gov.uk/ons/guide-method/geography/products/names--codes-and-look-ups/names-and-codes-listings/names-and-codes-for-administrative-geography/index.html,Thanet District Council,10/09/2013,345048,442.12,Morgan Jones Ltd,MOR001,East Kent Shared Services,Revenue,Employees
http://www.ons.gov.uk/ons/guide-method/geography/products/names--codes-and-look-ups/names-and-codes-listings/names-and-codes-for-administrative-geography/index.html,Thanet District Council,10/09/2013,344890,56,N J P Contractors,NJP001,Director of Community Services,Revenue,Premises Related Expenditure
http://www.ons.gov.uk/ons/guide-method/geography/products/names--codes-and-look-ups/names-and-codes-listings/names-and-codes-for-administrative-geography/index.html,Thanet District Council,10/09/2013,344890,980,N J P Contractors,NJP001,Director of Operational Services,Revenue,Premises Related Expenditure
http://www.ons.gov.uk/ons/guide-method/geography/products/names--codes-and-look-ups/names-and-codes-listings/names-and-codes-for-administrative-geography/index.html,Thanet District Council,10/09/2013,345202,7475.39,National Express Ltd,NAT010,Director of Community Services,Revenue,Supplies And Services
http://www.ons.gov.uk/ons/guide-method/geography/products/names--codes-and-look-ups/names-and-codes-listings/names-and-codes-for-administrative-geography/index.html,Thanet District Council,10/09/2013,345206,7361,Ncc Group Security Services Ltd,NCC005,East Kent Shared Services,Revenue,Supplies And Services
http://www.ons.gov.uk/ons/guide-method/geography/products/names--codes-and-look-ups/names-and-codes-listings/names-and-codes-for-administrative-geography/index.html,Thanet District Council,10/09/2013,345049,807.5,Nec (Uk) Ltd,NEC003,East Kent Shared Services,Revenue,Supplies And Services
http://www.ons.gov.uk/ons/guide-method/geography/products/names--codes-and-look-ups/names-and-codes-listings/names-and-codes-for-administrative-geography/index.html,Thanet District Council,10/09/2013,345033,27161,Network Technology Solutions (Uk) Ltd,NET010,East Kent Shared Services,Revenue,Supplies And Services
http://www.ons.gov.uk/ons/guide-method/geography/products/names--codes-and-look-ups/names-and-codes-listings/names-and-codes-for-administrative-geography/index.html,Thanet District Council,10/09/2013,344180,11225.63,Ocs Group Uk Ltd T/A Fountains,OCS005,Director of Corporate Services and Transformation,Balance Sheet,Current Assets
http://www.ons.gov.uk/ons/guide-method/geography/products/names--codes-and-look-ups/names-and-codes-listings/names-and-codes-for-administrative-geography/index.html,Thanet District Council,10/09/2013,344816,235.18,Ocs Group Uk Ltd T/A Fountains,OCS005,Director of Operational Services,Revenue,Premises Related Expenditure
http://www.ons.gov.uk/ons/guide-method/geography/products/names--codes-and-look-ups/names-and-codes-listings/names-and-codes-for-administrative-geography/index.html,Thanet District Council,10/09/2013,344790,285.9,Orange Personal Communications Ltd,ORA002,Director of Corporate Services and Transformation,Revenue,Supplies And Services
http://www.ons.gov.uk/ons/guide-method/geography/products/names--codes-and-look-ups/names-and-codes-listings/names-and-codes-for-administrative-geography/index.html,Thanet District Council,10/09/2013,344472,250,P R Bolder,BOL004,Director of Operational Services,Revenue,Premises Related Expenditure
http://www.ons.gov.uk/ons/guide-method/geography/products/names--codes-and-look-ups/names-and-codes-listings/names-and-codes-for-administrative-geography/index.html,Thanet District Council,10/09/2013,344551,7280,Parkeon Limited,PAR063,Director of Community Services,Revenue,Supplies And Services
http://www.ons.gov.uk/ons/guide-method/geography/products/names--codes-and-look-ups/names-and-codes-listings/names-and-codes-for-administrative-geography/index.html,Thanet District Council,10/09/2013,344527,2172.6,Patrol,PAT004,Director of Operational Services,Revenue,Supplies And Services
http://www.ons.gov.uk/ons/guide-method/geography/products/names--codes-and-look-ups/names-and-codes-listings/names-and-codes-for-administrative-geography/index.html,Thanet District Council,10/09/2013,344775,19983.67,Profile Security Services Limited,PRO018,Director of Operational Services,Revenue,Supplies And Services
http://www.ons.gov.uk/ons/guide-method/geography/products/names--codes-and-look-ups/names-and-codes-listings/names-and-codes-for-administrative-geography/index.html,Thanet District Council,10/09/2013,344386,455,R Cannon,CAN007,Director of Operational Services,Revenue,Premises Related Expenditure
http://www.ons.gov.uk/ons/guide-method/geography/products/names--codes-and-look-ups/names-and-codes-listings/names-and-codes-for-administrative-geography/index.html,Thanet District Council,10/09/2013,344815,665,R Cannon,CAN007,Director of Operational Services,Revenue,Premises Related Expenditure
http://www.ons.gov.uk/ons/guide-method/geography/products/names--codes-and-look-ups/names-and-codes-listings/names-and-codes-for-administrative-geography/index.html,Thanet District Council,10/09/2013,344550,2314.57,Royal Mail,ROY004,Director of Corporate Services and Transformation,Revenue,Supplies And Services
http://www.ons.gov.uk/ons/guide-method/geography/products/names--codes-and-look-ups/names-and-codes-listings/names-and-codes-for-administrative-geography/index.html,Thanet District Council,10/09/2013,344891,1407.24,Royal Mail,ROY004,Director of Corporate Services and Transformation,Revenue,Supplies And Services
http://www.ons.gov.uk/ons/guide-method/geography/products/names--codes-and-look-ups/names-and-codes-listings/names-and-codes-for-administrative-geography/index.html,Thanet District Council,10/09/2013,344403,2232,Sba Ltd,SBA001,Director of Operational Services,Revenue,Supplies And Services
http://www.ons.gov.uk/ons/guide-method/geography/products/names--codes-and-look-ups/names-and-codes-listings/names-and-codes-for-administrative-geography/index.html,Thanet District Council,10/09/2013,344873,4936.73,South East Building Company Limited,SEB001,Director of Corporate Services and Transformation,Balance Sheet,Long Term Assets
http://www.ons.gov.uk/ons/guide-method/geography/products/names--codes-and-look-ups/names-and-codes-listings/names-and-codes-for-administrative-geography/index.html,Thanet District Council,10/09/2013,345003,1030.15,Southern Electric,SEL007,Director of Community Services,Revenue,Premises Related Expenditure
http://www.ons.gov.uk/ons/guide-method/geography/products/names--codes-and-look-ups/names-and-codes-listings/names-and-codes-for-administrative-geography/index.html,Thanet District Council,10/09/2013,344690,8500,Strutt & Parker Llp,STR036,Director of Operational Services,Revenue,Supplies And Services
http://www.ons.gov.uk/ons/guide-method/geography/products/names--codes-and-look-ups/names-and-codes-listings/names-and-codes-for-administrative-geography/index.html,Thanet District Council,10/09/2013,344743,448.8,Supplies Team,SUP001,Director of Corporate Services and Transformation,Revenue,Supplies And Services
http://www.ons.gov.uk/ons/guide-method/geography/products/names--codes-and-look-ups/names-and-codes-listings/names-and-codes-for-administrative-geography/index.html,Thanet District Council,10/09/2013,345269,891.67,The Glenwood Hotel,GLE007,Director of Community Services,Revenue,Supplies And Services
http://www.ons.gov.uk/ons/guide-method/geography/products/names--codes-and-look-ups/names-and-codes-listings/names-and-codes-for-administrative-geography/index.html,Thanet District Council,10/09/2013,344877,224.1,Total Supplies Ltd,TOT009,Director of Corporate Services and Transformation,Balance Sheet,Current Liabilities
http://www.ons.gov.uk/ons/guide-method/geography/products/names--codes-and-look-ups/names-and-codes-listings/names-and-codes-for-administrative-geography/index.html,Thanet District Council,10/09/2013,344470,593.64,W G Burbridge,BUR016,Director of Operational Services,Revenue,Premises Related Expenditure
http://www.ons.gov.uk/ons/guide-method/geography/products/names--codes-and-look-ups/names-and-codes-listings/names-and-codes-for-administrative-geography/index.html,Thanet District Council,17/09/2013,345217,486.46,Adecco Uk Ltd,ADE005,Director of Corporate Services and Transformation,Revenue,Supplies And Services
http://www.ons.gov.uk/ons/guide-method/geography/products/names--codes-and-look-ups/names-and-codes-listings/names-and-codes-for-administrative-geography/index.html,Thanet District Council,17/09/2013,345221,215.12,Air Products Plc,AIR014,Director of Operational Services,Revenue,Transport Related Expenditure
http://www.ons.gov.uk/ons/guide-method/geography/products/names--codes-and-look-ups/names-and-codes-listings/names-and-codes-for-administrative-geography/index.html,Thanet District Council,17/09/2013,345580,4190,Ascendit Lifts Ltd,ASC001,Director of Corporate Services and Transformation,Balance Sheet,Long Term Assets
http://www.ons.gov.uk/ons/guide-method/geography/products/names--codes-and-look-ups/names-and-codes-listings/names-and-codes-for-administrative-geography/index.html,Thanet District Council,17/09/2013,345419,3118.88,Berryman,BER001,Director of Operational Services,Revenue,Supplies And Services
http://www.ons.gov.uk/ons/guide-method/geography/products/names--codes-and-look-ups/names-and-codes-listings/names-and-codes-for-administrative-geography/index.html,Thanet District Council,17/09/2013,345109,320,Bowman Maintenance Contracting,BMC001,Director of Operational Services,Revenue,Supplies And Services
http://www.ons.gov.uk/ons/guide-method/geography/products/names--codes-and-look-ups/names-and-codes-listings/names-and-codes-for-administrative-geography/index.html,Thanet District Council,17/09/2013,345121,542.88,Bridge Security Cctv Ltd,BRI039,Director of Operational Services,Revenue,Supplies And Services
http://www.ons.gov.uk/ons/guide-method/geography/products/names--codes-and-look-ups/names-and-codes-listings/names-and-codes-for-administrative-geography/index.html,Thanet District Council,17/09/2013,345172,2106.79,Bridge Security Cctv Ltd,BRI039,Director of Operational Services,Revenue,Supplies And Services
http://www.ons.gov.uk/ons/guide-method/geography/products/names--codes-and-look-ups/names-and-codes-listings/names-and-codes-for-administrative-geography/index.html,Thanet District Council,17/09/2013,345216,396.29,Business Computer Solutions Ltd,BUS002,Director of Community Services,Revenue,Supplies And Services
http://www.ons.gov.uk/ons/guide-method/geography/products/names--codes-and-look-ups/names-and-codes-listings/names-and-codes-for-administrative-geography/index.html,Thanet District Council,17/09/2013,345073,228,Casement Signs And Traffic,CAS001,Director of Community Services,Revenue,Supplies And Services
http://www.ons.gov.uk/ons/guide-method/geography/products/names--codes-and-look-ups/names-and-codes-listings/names-and-codes-for-administrative-geography/index.html,Thanet District Council,17/09/2013,345402,1018.5,Cobalt Telephone Technologies Ltd,COB002,Director of Operational Services,Revenue,Supplies And Services
http://www.ons.gov.uk/ons/guide-method/geography/products/names--codes-and-look-ups/names-and-codes-listings/names-and-codes-for-administrative-geography/index.html,Thanet District Council,17/09/2013,345483,3851,Commercial Services Trading Ltd,COM048,Chief Executive and S151,Revenue,Transport Related Expenditure
http://www.ons.gov.uk/ons/guide-method/geography/products/names--codes-and-look-ups/names-and-codes-listings/names-and-codes-for-administrative-geography/index.html,Thanet District Council,17/09/2013,345582,6021,Connoisseur Renovations,CON037,Director of Corporate Services and Transformation,Balance Sheet,Long Term Assets
http://www.ons.gov.uk/ons/guide-method/geography/products/names--codes-and-look-ups/names-and-codes-listings/names-and-codes-for-administrative-geography/index.html,Thanet District Council,17/09/2013,345448,259.66,Dennis Eagle Ltd,DEN005,Director of Operational Services,Revenue,Transport Related Expenditure
http://www.ons.gov.uk/ons/guide-method/geography/products/names--codes-and-look-ups/names-and-codes-listings/names-and-codes-for-administrative-geography/index.html,Thanet District Council,17/09/2013,345449,208.78,Dennis Eagle Ltd,DEN005,Director of Operational Services,Revenue,Transport Related Expenditure
http://www.ons.gov.uk/ons/guide-method/geography/products/names--codes-and-look-ups/names-and-codes-listings/names-and-codes-for-administrative-geography/index.html,Thanet District Council,17/09/2013,345450,243.15,Dennis Eagle Ltd,DEN005,Director of Operational Services,Revenue,Transport Related Expenditure
http://www.ons.gov.uk/ons/guide-method/geography/products/names--codes-and-look-ups/names-and-codes-listings/names-and-codes-for-administrative-geography/index.html,Thanet District Council,17/09/2013,345620,631.02,E Saunders Margate Ltd,SAU001,Director of Corporate Services and Transformation,Balance Sheet,Current Assets
http://www.ons.gov.uk/ons/guide-method/geography/products/names--codes-and-look-ups/names-and-codes-listings/names-and-codes-for-administrative-geography/index.html,Thanet District Council,17/09/2013,345568,1047.45,East Kent Components Ltd,EKC006,Director of Operational Services,Revenue,Transport Related Expenditure
http://www.ons.gov.uk/ons/guide-method/geography/products/names--codes-and-look-ups/names-and-codes-listings/names-and-codes-for-administrative-geography/index.html,Thanet District Council,17/09/2013,345112,324.29,Edf Energy 1 Ltd,SEE012,Director of Operational Services,Revenue,Premises Related Expenditure
http://www.ons.gov.uk/ons/guide-method/geography/products/names--codes-and-look-ups/names-and-codes-listings/names-and-codes-for-administrative-geography/index.html,Thanet District Council,17/09/2013,345115,282.11,Edf Energy 1 Ltd,SEE012,Director of Operational Services,Revenue,Premises Related Expenditure
http://www.ons.gov.uk/ons/guide-method/geography/products/names--codes-and-look-ups/names-and-codes-listings/names-and-codes-for-administrative-geography/index.html,Thanet District Council,17/09/2013,345118,273.9,Edf Energy 1 Ltd,SEE012,Director of Operational Services,Revenue,Premises Related Expenditure
http://www.ons.gov.uk/ons/guide-method/geography/products/names--codes-and-look-ups/names-and-codes-listings/names-and-codes-for-administrative-geography/index.html,Thanet District Council,17/09/2013,345432,730,Egbert H Taylor & Company Ltd,TAY005,Director of Operational Services,Revenue,Supplies And Services
http://www.ons.gov.uk/ons/guide-method/geography/products/names--codes-and-look-ups/names-and-codes-listings/names-and-codes-for-administrative-geography/index.html,Thanet District Council,17/09/2013,345433,394,Egbert H Taylor & Company Ltd,TAY005,Director of Operational Services,Revenue,Supplies And Services
http://www.ons.gov.uk/ons/guide-method/geography/products/names--codes-and-look-ups/names-and-codes-listings/names-and-codes-for-administrative-geography/index.html,Thanet District Council,17/09/2013,345241,2244,Estuary Services Ltd,EST002,Director of Operational Services,Revenue,Premises Related Expenditure
http://www.ons.gov.uk/ons/guide-method/geography/products/names--codes-and-look-ups/names-and-codes-listings/names-and-codes-for-administrative-geography/index.html,Thanet District Council,17/09/2013,345063,469.9,Evergreen Landscaping Gardening Ltd,EVE004,Director of Operational Services,Revenue,Premises Related Expenditure
http://www.ons.gov.uk/ons/guide-method/geography/products/names--codes-and-look-ups/names-and-codes-listings/names-and-codes-for-administrative-geography/index.html,Thanet District Council,17/09/2013,344856,290,Excelerate Security Solutions,EXC004,Director of Corporate Services and Transformation,Revenue,Supplies And Services
http://www.ons.gov.uk/ons/guide-method/geography/products/names--codes-and-look-ups/names-and-codes-listings/names-and-codes-for-administrative-geography/index.html,Thanet District Council,17/09/2013,345576,750.76,Family Mosaic Housing,FAM001,Director of Corporate Services and Transformation,Balance Sheet,Long Term Assets
http://www.ons.gov.uk/ons/guide-method/geography/products/names--codes-and-look-ups/names-and-codes-listings/names-and-codes-for-administrative-geography/index.html,Thanet District Council,17/09/2013,345577,621.76,Family Mosaic Housing,FAM001,Director of Corporate Services and Transformation,Balance Sheet,Long Term Assets
http://www.ons.gov.uk/ons/guide-method/geography/products/names--codes-and-look-ups/names-and-codes-listings/names-and-codes-for-administrative-geography/index.html,Thanet District Council,17/09/2013,345176,450,Florence Court Hotel,FLO003,Director of Community Services,Revenue,Supplies And Services
http://www.ons.gov.uk/ons/guide-method/geography/products/names--codes-and-look-ups/names-and-codes-listings/names-and-codes-for-administrative-geography/index.html,Thanet District Council,17/09/2013,345177,540,Florence Court Hotel,FLO003,Director of Community Services,Revenue,Supplies And Services
http://www.ons.gov.uk/ons/guide-method/geography/products/names--codes-and-look-ups/names-and-codes-listings/names-and-codes-for-administrative-geography/index.html,Thanet District Council,17/09/2013,345178,930,Florence Court Hotel,FLO003,Director of Community Services,Revenue,Supplies And Services
http://www.ons.gov.uk/ons/guide-method/geography/products/names--codes-and-look-ups/names-and-codes-listings/names-and-codes-for-administrative-geography/index.html,Thanet District Council,17/09/2013,345179,780,Florence Court Hotel,FLO003,Director of Community Services,Revenue,Supplies And Services
http://www.ons.gov.uk/ons/guide-method/geography/products/names--codes-and-look-ups/names-and-codes-listings/names-and-codes-for-administrative-geography/index.html,Thanet District Council,17/09/2013,345180,750,Florence Court Hotel,FLO003,Director of Community Services,Revenue,Supplies And Services
http://www.ons.gov.uk/ons/guide-method/geography/products/names--codes-and-look-ups/names-and-codes-listings/names-and-codes-for-administrative-geography/index.html,Thanet District Council,17/09/2013,345395,250,George Mccabe,MCC001,Director of Operational Services,Revenue,Premises Related Expenditure
http://www.ons.gov.uk/ons/guide-method/geography/products/names--codes-and-look-ups/names-and-codes-listings/names-and-codes-for-administrative-geography/index.html,Thanet District Council,17/09/2013,344858,626,Gerlack & Thorne Ltd,GER001,Director of Operational Services,Revenue,Premises Related Expenditure
http://www.ons.gov.uk/ons/guide-method/geography/products/names--codes-and-look-ups/names-and-codes-listings/names-and-codes-for-administrative-geography/index.html,Thanet District Council,17/09/2013,345416,282.22,H E Municipal Engineering Ltd,HEM003,Director of Operational Services,Revenue,Transport Related Expenditure
http://www.ons.gov.uk/ons/guide-method/geography/products/names--codes-and-look-ups/names-and-codes-listings/names-and-codes-for-administrative-geography/index.html,Thanet District Council,17/09/2013,345417,650,Hi Way Services Ltd,HIW002,Director of Operational Services,Revenue,Premises Related Expenditure
http://www.ons.gov.uk/ons/guide-method/geography/products/names--codes-and-look-ups/names-and-codes-listings/names-and-codes-for-administrative-geography/index.html,Thanet District Council,17/09/2013,345418,375,Hi Way Services Ltd,HIW002,Director of Community Services,Revenue,Supplies And Services
http://www.ons.gov.uk/ons/guide-method/geography/products/names--codes-and-look-ups/names-and-codes-listings/names-and-codes-for-administrative-geography/index.html,Thanet District Council,17/09/2013,345078,9960.1,Holbrook Revell Electrical Ltd,HOL015,Director of Operational Services,Revenue,Supplies And Services
http://www.ons.gov.uk/ons/guide-method/geography/products/names--codes-and-look-ups/names-and-codes-listings/names-and-codes-for-administrative-geography/index.html,Thanet District Council,17/09/2013,345465,6686.2,Hr Go Recruitment Ltd,HRG002,Director of Operational Services,Revenue,Employees
http://www.ons.gov.uk/ons/guide-method/geography/products/names--codes-and-look-ups/names-and-codes-listings/names-and-codes-for-administrative-geography/index.html,Thanet District Council,17/09/2013,345466,486,Hr Go Recruitment Ltd,HRG002,Director of Operational Services,Revenue,Employees
http://www.ons.gov.uk/ons/guide-method/geography/products/names--codes-and-look-ups/names-and-codes-listings/names-and-codes-for-administrative-geography/index.html,Thanet District Council,17/09/2013,345224,4067.9,Hydro-Cleansing Ltd,HYD012,Director of Operational Services,Revenue,Premises Related Expenditure
http://www.ons.gov.uk/ons/guide-method/geography/products/names--codes-and-look-ups/names-and-codes-listings/names-and-codes-for-administrative-geography/index.html,Thanet District Council,17/09/2013,345009,5370.9,Icm Business Continuity Services Ltd,ICM003,East Kent Shared Services,Revenue,Supplies And Services
http://www.ons.gov.uk/ons/guide-method/geography/products/names--codes-and-look-ups/names-and-codes-listings/names-and-codes-for-administrative-geography/index.html,Thanet District Council,17/09/2013,340601,14196.81,Idox Software  Limited,IDO001,Director of Corporate Services and Transformation,Revenue,Supplies And Services
http://www.ons.gov.uk/ons/guide-method/geography/products/names--codes-and-look-ups/names-and-codes-listings/names-and-codes-for-administrative-geography/index.html,Thanet District Council,17/09/2013,345688,599.4,Idox Software  Limited,IDO001,Director of Corporate Services and Transformation,Revenue,Supplies And Services
http://www.ons.gov.uk/ons/guide-method/geography/products/names--codes-and-look-ups/names-and-codes-listings/names-and-codes-for-administrative-geography/index.html,Thanet District Council,17/09/2013,345689,-599.4,Idox Software  Limited,IDO001,Director of Corporate Services and Transformation,Revenue,Supplies And Services
http://www.ons.gov.uk/ons/guide-method/geography/products/names--codes-and-look-ups/names-and-codes-listings/names-and-codes-for-administrative-geography/index.html,Thanet District Council,17/09/2013,339277,4806.8,Imperial Civil Enforcement Sols Ltd,IMP008,Director of Operational Services,Revenue,Supplies And Services
http://www.ons.gov.uk/ons/guide-method/geography/products/names--codes-and-look-ups/names-and-codes-listings/names-and-codes-for-administrative-geography/index.html,Thanet District Council,17/09/2013,344876,2326.8,Imperial Civil Enforcement Sols Ltd,IMP008,Director of Operational Services,Revenue,Supplies And Services
http://www.ons.gov.uk/ons/guide-method/geography/products/names--codes-and-look-ups/names-and-codes-listings/names-and-codes-for-administrative-geography/index.html,Thanet District Council,17/09/2013,345182,1260,J Redpath Buchanan & Co Ltd,RED001,Director of Corporate Services and Transformation,Balance Sheet,Current Assets
http://www.ons.gov.uk/ons/guide-method/geography/products/names--codes-and-look-ups/names-and-codes-listings/names-and-codes-for-administrative-geography/index.html,Thanet District Council,17/09/2013,345579,1248.62,John Gale,GAL001,Director of Corporate Services and Transformation,Balance Sheet,Long Term Assets
http://www.ons.gov.uk/ons/guide-method/geography/products/names--codes-and-look-ups/names-and-codes-listings/names-and-codes-for-administrative-geography/index.html,Thanet District Council,17/09/2013,345581,722.52,John Gale,GAL001,Director of Corporate Services and Transformation,Balance Sheet,Long Term Assets
http://www.ons.gov.uk/ons/guide-method/geography/products/names--codes-and-look-ups/names-and-codes-listings/names-and-codes-for-administrative-geography/index.html,Thanet District Council,17/09/2013,345583,727.8,John Gale,GAL001,Director of Corporate Services and Transformation,Balance Sheet,Long Term Assets
http://www.ons.gov.uk/ons/guide-method/geography/products/names--codes-and-look-ups/names-and-codes-listings/names-and-codes-for-administrative-geography/index.html,Thanet District Council,17/09/2013,345587,2929.44,John Gale,GAL001,Director of Corporate Services and Transformation,Balance Sheet,Long Term Assets
http://www.ons.gov.uk/ons/guide-method/geography/products/names--codes-and-look-ups/names-and-codes-listings/names-and-codes-for-administrative-geography/index.html,Thanet District Council,17/09/2013,344548,2090.5,John Reeve (Plant Hire) Ltd,REE013,Director of Operational Services,Revenue,Transport Related Expenditure
http://www.ons.gov.uk/ons/guide-method/geography/products/names--codes-and-look-ups/names-and-codes-listings/names-and-codes-for-administrative-geography/index.html,Thanet District Council,17/09/2013,344766,690,John Reeve (Plant Hire) Ltd,REE013,Director of Operational Services,Revenue,Transport Related Expenditure
http://www.ons.gov.uk/ons/guide-method/geography/products/names--codes-and-look-ups/names-and-codes-listings/names-and-codes-for-administrative-geography/index.html,Thanet District Council,17/09/2013,345007,536.5,John Reeve (Plant Hire) Ltd,REE013,Director of Operational Services,Revenue,Transport Related Expenditure
http://www.ons.gov.uk/ons/guide-method/geography/products/names--codes-and-look-ups/names-and-codes-listings/names-and-codes-for-administrative-geography/index.html,Thanet District Council,17/09/2013,345223,476,Kelway (Uk) Ltd,KEL003,East Kent Shared Services,Revenue,Supplies And Services
http://www.ons.gov.uk/ons/guide-method/geography/products/names--codes-and-look-ups/names-and-codes-listings/names-and-codes-for-administrative-geography/index.html,Thanet District Council,17/09/2013,345430,927,Kelway (Uk) Ltd,KEL003,Director of Corporate Services and Transformation,Revenue,Supplies And Services
http://www.ons.gov.uk/ons/guide-method/geography/products/names--codes-and-look-ups/names-and-codes-listings/names-and-codes-for-administrative-geography/index.html,Thanet District Council,17/09/2013,345431,1386,Kelway (Uk) Ltd,KEL003,East Kent Shared Services,Revenue,Supplies And Services
http://www.ons.gov.uk/ons/guide-method/geography/products/names--codes-and-look-ups/names-and-codes-listings/names-and-codes-for-administrative-geography/index.html,Thanet District Council,17/09/2013,344742,2785.39,Kent County Council (Kcs),KCC003,Director of Operational Services,Revenue,Transport Related Expenditure
http://www.ons.gov.uk/ons/guide-method/geography/products/names--codes-and-look-ups/names-and-codes-listings/names-and-codes-for-administrative-geography/index.html,Thanet District Council,17/09/2013,345184,2039.91,Kent County Council (Kcs),KCC003,Director of Operational Services,Revenue,Premises Related Expenditure
http://www.ons.gov.uk/ons/guide-method/geography/products/names--codes-and-look-ups/names-and-codes-listings/names-and-codes-for-administrative-geography/index.html,Thanet District Council,17/09/2013,345185,2063.1,Kent County Council (Kcs),KCC003,Director of Operational Services,Revenue,Premises Related Expenditure
http://www.ons.gov.uk/ons/guide-method/geography/products/names--codes-and-look-ups/names-and-codes-listings/names-and-codes-for-administrative-geography/index.html,Thanet District Council,17/09/2013,345250,2373.77,Level 3 Communications (Uk) Ltd,LEV005,Director of Corporate Services and Transformation,Balance Sheet,Current Assets
http://www.ons.gov.uk/ons/guide-method/geography/products/names--codes-and-look-ups/names-and-codes-listings/names-and-codes-for-administrative-geography/index.html,Thanet District Council,17/09/2013,345426,302,Ling Metals Limited,LIN004,Director of Operational Services,Revenue,Premises Related Expenditure
http://www.ons.gov.uk/ons/guide-method/geography/products/names--codes-and-look-ups/names-and-codes-listings/names-and-codes-for-administrative-geography/index.html,Thanet District Council,17/09/2013,344863,560,M D Electrics,MDE001,Director of Operational Services,Revenue,Premises Related Expenditure
http://www.ons.gov.uk/ons/guide-method/geography/products/names--codes-and-look-ups/names-and-codes-listings/names-and-codes-for-administrative-geography/index.html,Thanet District Council,17/09/2013,344864,290,M D Electrics,MDE001,Director of Operational Services,Revenue,Premises Related Expenditure
http://www.ons.gov.uk/ons/guide-method/geography/products/names--codes-and-look-ups/names-and-codes-listings/names-and-codes-for-administrative-geography/index.html,Thanet District Council,17/09/2013,345681,300,Mark Jones Tree Surgery,JON019,Director of Community Services,Revenue,Supplies And Services
http://www.ons.gov.uk/ons/guide-method/geography/products/names--codes-and-look-ups/names-and-codes-listings/names-and-codes-for-administrative-geography/index.html,Thanet District Council,17/09/2013,344735,95958.76,Mears Ltd,MEA003,Director of Community Services,Revenue,Premises Related Expenditure
http://www.ons.gov.uk/ons/guide-method/geography/products/names--codes-and-look-ups/names-and-codes-listings/names-and-codes-for-administrative-geography/index.html,Thanet District Council,17/09/2013,345227,270,Med Clean South Ltd,MED015,Director of Operational Services,Revenue,Premises Related Expenditure
http://www.ons.gov.uk/ons/guide-method/geography/products/names--codes-and-look-ups/names-and-codes-listings/names-and-codes-for-administrative-geography/index.html,Thanet District Council,17/09/2013,345228,6622.14,Med Clean South Ltd,MED015,Director of Operational Services,Revenue,Premises Related Expenditure
http://www.ons.gov.uk/ons/guide-method/geography/products/names--codes-and-look-ups/names-and-codes-listings/names-and-codes-for-administrative-geography/index.html,Thanet District Council,17/09/2013,345061,899.64,Mems Power Generation,MEM001,Director of Community Services,Revenue,Supplies And Services
http://www.ons.gov.uk/ons/guide-method/geography/products/names--codes-and-look-ups/names-and-codes-listings/names-and-codes-for-administrative-geography/index.html,Thanet District Council,17/09/2013,345261,615.21,Metric Group Ltd,MET001,Director of Operational Services,Revenue,Supplies And Services
http://www.ons.gov.uk/ons/guide-method/geography/products/names--codes-and-look-ups/names-and-codes-listings/names-and-codes-for-administrative-geography/index.html,Thanet District Council,17/09/2013,345423,7211.16,Metric Group Ltd,MET001,Director of Operational Services,Revenue,Supplies And Services
http://www.ons.gov.uk/ons/guide-method/geography/products/names--codes-and-look-ups/names-and-codes-listings/names-and-codes-for-administrative-geography/index.html,Thanet District Council,17/09/2013,345070,51077.31,Molyneux Rose Ltd Cl Acc-I/S M'Gate,MOL002,Director of Operational Services,Revenue,Premises Related Expenditure
http://www.ons.gov.uk/ons/guide-method/geography/products/names--codes-and-look-ups/names-and-codes-listings/names-and-codes-for-administrative-geography/index.html,Thanet District Council,17/09/2013,345069,42559.75,Molyneux Rose Ltd Cl Acc-I/S R'Gate,MOL003,Director of Operational Services,Revenue,Premises Related Expenditure
http://www.ons.gov.uk/ons/guide-method/geography/products/names--codes-and-look-ups/names-and-codes-listings/names-and-codes-for-administrative-geography/index.html,Thanet District Council,17/09/2013,345400,264.25,Neopost Ltd,NEO003,Director of Corporate Services and Transformation,Revenue,Supplies And Services
http://www.ons.gov.uk/ons/guide-method/geography/products/names--codes-and-look-ups/names-and-codes-listings/names-and-codes-for-administrative-geography/index.html,Thanet District Council,17/09/2013,345570,5000,Neopost Ltd Credifon,NEO002,Director of Corporate Services and Transformation,Revenue,Supplies And Services
http://www.ons.gov.uk/ons/guide-method/geography/products/names--codes-and-look-ups/names-and-codes-listings/names-and-codes-for-administrative-geography/index.html,Thanet District Council,17/09/2013,345586,14840,Northwood Builders,NOR002,Director of Corporate Services and Transformation,Balance Sheet,Long Term Assets
http://www.ons.gov.uk/ons/guide-method/geography/products/names--codes-and-look-ups/names-and-codes-listings/names-and-codes-for-administrative-geography/index.html,Thanet District Council,17/09/2013,345405,3450,Pillory Barn Design Ltd,PIL004,Director of Operational Services,Revenue,Supplies And Services
http://www.ons.gov.uk/ons/guide-method/geography/products/names--codes-and-look-ups/names-and-codes-listings/names-and-codes-for-administrative-geography/index.html,Thanet District Council,17/09/2013,345041,345.74,Ppg Arch Coatings Uk Ltd,PPG001,Director of Operational Services,Revenue,Premises Related Expenditure
http://www.ons.gov.uk/ons/guide-method/geography/products/names--codes-and-look-ups/names-and-codes-listings/names-and-codes-for-administrative-geography/index.html,Thanet District Council,17/09/2013,345047,257.13,Ppg Arch Coatings Uk Ltd,PPG001,Director of Operational Services,Revenue,Premises Related Expenditure
http://www.ons.gov.uk/ons/guide-method/geography/products/names--codes-and-look-ups/names-and-codes-listings/names-and-codes-for-administrative-geography/index.html,Thanet District Council,17/09/2013,345657,6223,Precept Cs Ltd,PRE032,Director of Corporate Services and Transformation,Balance Sheet,Long Term Assets
http://www.ons.gov.uk/ons/guide-method/geography/products/names--codes-and-look-ups/names-and-codes-listings/names-and-codes-for-administrative-geography/index.html,Thanet District Council,17/09/2013,345255,3150,Puls Global Ltd,PUL006,Director of Operational Services,Revenue,Supplies And Services
http://www.ons.gov.uk/ons/guide-method/geography/products/names--codes-and-look-ups/names-and-codes-listings/names-and-codes-for-administrative-geography/index.html,Thanet District Council,17/09/2013,345256,4878,Puls Global Ltd,PUL006,Director of Operational Services,Revenue,Supplies And Services
http://www.ons.gov.uk/ons/guide-method/geography/products/names--codes-and-look-ups/names-and-codes-listings/names-and-codes-for-administrative-geography/index.html,Thanet District Council,17/09/2013,345619,29584.63,R R Richardson Ltd,RIC027,Director of Corporate Services and Transformation,Balance Sheet,Long Term Assets
http://www.ons.gov.uk/ons/guide-method/geography/products/names--codes-and-look-ups/names-and-codes-listings/names-and-codes-for-administrative-geography/index.html,Thanet District Council,17/09/2013,345461,1310,Rackspace Limited,RAC006,East Kent Shared Services,Revenue,Supplies And Services
http://www.ons.gov.uk/ons/guide-method/geography/products/names--codes-and-look-ups/names-and-codes-listings/names-and-codes-for-administrative-geography/index.html,Thanet District Council,17/09/2013,345682,412.32,REDACTED PERSONAL DATA,GOD008,Director of Community Services,Revenue,Supplies And Services
http://www.ons.gov.uk/ons/guide-method/geography/products/names--codes-and-look-ups/names-and-codes-listings/names-and-codes-for-administrative-geography/index.html,Thanet District Council,17/09/2013,345066,1300,Redactive Media Sales Ltd,RED007,Director of Operational Services,Revenue,Supplies And Services
http://www.ons.gov.uk/ons/guide-method/geography/products/names--codes-and-look-ups/names-and-codes-listings/names-and-codes-for-administrative-geography/index.html,Thanet District Council,17/09/2013,345067,600,Redactive Media Sales Ltd,RED007,Director of Operational Services,Revenue,Supplies And Services
http://www.ons.gov.uk/ons/guide-method/geography/products/names--codes-and-look-ups/names-and-codes-listings/names-and-codes-for-administrative-geography/index.html,Thanet District Council,17/09/2013,345068,600,Redactive Media Sales Ltd,RED007,Director of Operational Services,Revenue,Supplies And Services
http://www.ons.gov.uk/ons/guide-method/geography/products/names--codes-and-look-ups/names-and-codes-listings/names-and-codes-for-administrative-geography/index.html,Thanet District Council,17/09/2013,345420,3097.87,Royal Mail,ROY004,Director of Corporate Services and Transformation,Revenue,Supplies And Services
http://www.ons.gov.uk/ons/guide-method/geography/products/names--codes-and-look-ups/names-and-codes-listings/names-and-codes-for-administrative-geography/index.html,Thanet District Council,17/09/2013,344713,2196,Shaw Electrical,SHA005,Director of Operational Services,Revenue,Premises Related Expenditure
http://www.ons.gov.uk/ons/guide-method/geography/products/names--codes-and-look-ups/names-and-codes-listings/names-and-codes-for-administrative-geography/index.html,Thanet District Council,17/09/2013,345401,1246.4,Signway Supplies (Datchet) Limited,SIG013,Director of Operational Services,Revenue,Premises Related Expenditure
http://www.ons.gov.uk/ons/guide-method/geography/products/names--codes-and-look-ups/names-and-codes-listings/names-and-codes-for-administrative-geography/index.html,Thanet District Council,17/09/2013,345584,6065,South East Building Company Limited,SEB001,Director of Corporate Services and Transformation,Balance Sheet,Long Term Assets
http://www.ons.gov.uk/ons/guide-method/geography/products/names--codes-and-look-ups/names-and-codes-listings/names-and-codes-for-administrative-geography/index.html,Thanet District Council,17/09/2013,344531,-407.64,Southern Electric,SEL007,Director of Community Services,Revenue,Premises Related Expenditure
http://www.ons.gov.uk/ons/guide-method/geography/products/names--codes-and-look-ups/names-and-codes-listings/names-and-codes-for-administrative-geography/index.html,Thanet District Council,17/09/2013,344532,339.8,Southern Electric,SEL007,Director of Community Services,Revenue,Premises Related Expenditure
http://www.ons.gov.uk/ons/guide-method/geography/products/names--codes-and-look-ups/names-and-codes-listings/names-and-codes-for-administrative-geography/index.html,Thanet District Council,17/09/2013,344537,394.16,Southern Electric,SEL007,Director of Community Services,Revenue,Premises Related Expenditure
http://www.ons.gov.uk/ons/guide-method/geography/products/names--codes-and-look-ups/names-and-codes-listings/names-and-codes-for-administrative-geography/index.html,Thanet District Council,17/09/2013,345126,1059.97,Southern Electric,SEL007,Director of Operational Services,Revenue,Premises Related Expenditure
http://www.ons.gov.uk/ons/guide-method/geography/products/names--codes-and-look-ups/names-and-codes-listings/names-and-codes-for-administrative-geography/index.html,Thanet District Council,17/09/2013,345127,1647.71,Southern Electric,SEL007,Director of Operational Services,Revenue,Premises Related Expenditure
http://www.ons.gov.uk/ons/guide-method/geography/products/names--codes-and-look-ups/names-and-codes-listings/names-and-codes-for-administrative-geography/index.html,Thanet District Council,17/09/2013,345128,469.82,Southern Electric,SEL007,Director of Operational Services,Revenue,Premises Related Expenditure
http://www.ons.gov.uk/ons/guide-method/geography/products/names--codes-and-look-ups/names-and-codes-listings/names-and-codes-for-administrative-geography/index.html,Thanet District Council,17/09/2013,345130,602.92,Southern Electric,SEL007,Director of Operational Services,Revenue,Premises Related Expenditure
http://www.ons.gov.uk/ons/guide-method/geography/products/names--codes-and-look-ups/names-and-codes-listings/names-and-codes-for-administrative-geography/index.html,Thanet District Council,17/09/2013,345137,3595.15,Southern Electric,SEL007,Director of Operational Services,Revenue,Premises Related Expenditure
http://www.ons.gov.uk/ons/guide-method/geography/products/names--codes-and-look-ups/names-and-codes-listings/names-and-codes-for-administrative-geography/index.html,Thanet District Council,17/09/2013,345149,1691.89,Southern Water,SWA001,Director of Operational Services,Revenue,Premises Related Expenditure
http://www.ons.gov.uk/ons/guide-method/geography/products/names--codes-and-look-ups/names-and-codes-listings/names-and-codes-for-administrative-geography/index.html,Thanet District Council,17/09/2013,345203,3182.5,Southern Water,SWA001,Director of Operational Services,Revenue,Premises Related Expenditure
http://www.ons.gov.uk/ons/guide-method/geography/products/names--codes-and-look-ups/names-and-codes-listings/names-and-codes-for-administrative-geography/index.html,Thanet District Council,17/09/2013,345435,214.18,Sparshatts Of Kent Ltd,SPA008,Director of Operational Services,Revenue,Transport Related Expenditure
http://www.ons.gov.uk/ons/guide-method/geography/products/names--codes-and-look-ups/names-and-codes-listings/names-and-codes-for-administrative-geography/index.html,Thanet District Council,17/09/2013,345436,214.18,Sparshatts Of Kent Ltd,SPA008,Director of Operational Services,Revenue,Transport Related Expenditure
http://www.ons.gov.uk/ons/guide-method/geography/products/names--codes-and-look-ups/names-and-codes-listings/names-and-codes-for-administrative-geography/index.html,Thanet District Council,17/09/2013,345080,218.64,Stand Fast,STA003,Director of Corporate Services and Transformation,Balance Sheet,Current Assets
http://www.ons.gov.uk/ons/guide-method/geography/products/names--codes-and-look-ups/names-and-codes-listings/names-and-codes-for-administrative-geography/index.html,Thanet District Council,17/09/2013,344689,630,Streetmaster (S.Wales) Limited,STR001,Director of Operational Services,Revenue,Supplies And Services
http://www.ons.gov.uk/ons/guide-method/geography/products/names--codes-and-look-ups/names-and-codes-listings/names-and-codes-for-administrative-geography/index.html,Thanet District Council,17/09/2013,345486,448.8,Supplies Team,SUP001,Director of Corporate Services and Transformation,Revenue,Supplies And Services
http://www.ons.gov.uk/ons/guide-method/geography/products/names--codes-and-look-ups/names-and-codes-listings/names-and-codes-for-administrative-geography/index.html,Thanet District Council,17/09/2013,344889,24618.46,Swale Heating Ltd,SWA006,Director of Corporate Services and Transformation,Balance Sheet,Current Assets
http://www.ons.gov.uk/ons/guide-method/geography/products/names--codes-and-look-ups/names-and-codes-listings/names-and-codes-for-administrative-geography/index.html,Thanet District Council,17/09/2013,345590,1539,Swale Heating Ltd,SWA006,Director of Corporate Services and Transformation,Balance Sheet,Current Assets
http://www.ons.gov.uk/ons/guide-method/geography/products/names--codes-and-look-ups/names-and-codes-listings/names-and-codes-for-administrative-geography/index.html,Thanet District Council,17/09/2013,345591,1869,Swale Heating Ltd,SWA006,Director of Corporate Services and Transformation,Balance Sheet,Current Assets
http://www.ons.gov.uk/ons/guide-method/geography/products/names--codes-and-look-ups/names-and-codes-listings/names-and-codes-for-administrative-geography/index.html,Thanet District Council,17/09/2013,345592,1945,Swale Heating Ltd,SWA006,Director of Corporate Services and Transformation,Balance Sheet,Current Assets
http://www.ons.gov.uk/ons/guide-method/geography/products/names--codes-and-look-ups/names-and-codes-listings/names-and-codes-for-administrative-geography/index.html,Thanet District Council,17/09/2013,345593,1739,Swale Heating Ltd,SWA006,Director of Corporate Services and Transformation,Balance Sheet,Current Assets
http://www.ons.gov.uk/ons/guide-method/geography/products/names--codes-and-look-ups/names-and-codes-listings/names-and-codes-for-administrative-geography/index.html,Thanet District Council,17/09/2013,345594,1864,Swale Heating Ltd,SWA006,Director of Corporate Services and Transformation,Balance Sheet,Current Assets
http://www.ons.gov.uk/ons/guide-method/geography/products/names--codes-and-look-ups/names-and-codes-listings/names-and-codes-for-administrative-geography/index.html,Thanet District Council,17/09/2013,345595,2300,Swale Heating Ltd,SWA006,Director of Corporate Services and Transformation,Balance Sheet,Current Assets
http://www.ons.gov.uk/ons/guide-method/geography/products/names--codes-and-look-ups/names-and-codes-listings/names-and-codes-for-administrative-geography/index.html,Thanet District Council,17/09/2013,345596,2065,Swale Heating Ltd,SWA006,Director of Corporate Services and Transformation,Balance Sheet,Current Assets
http://www.ons.gov.uk/ons/guide-method/geography/products/names--codes-and-look-ups/names-and-codes-listings/names-and-codes-for-administrative-geography/index.html,Thanet District Council,17/09/2013,345597,1739,Swale Heating Ltd,SWA006,Director of Corporate Services and Transformation,Balance Sheet,Current Assets
http://www.ons.gov.uk/ons/guide-method/geography/products/names--codes-and-look-ups/names-and-codes-listings/names-and-codes-for-administrative-geography/index.html,Thanet District Council,17/09/2013,345598,1739,Swale Heating Ltd,SWA006,Director of Corporate Services and Transformation,Balance Sheet,Current Assets
http://www.ons.gov.uk/ons/guide-method/geography/products/names--codes-and-look-ups/names-and-codes-listings/names-and-codes-for-administrative-geography/index.html,Thanet District Council,17/09/2013,345599,1850,Swale Heating Ltd,SWA006,Director of Corporate Services and Transformation,Balance Sheet,Current Assets
http://www.ons.gov.uk/ons/guide-method/geography/products/names--codes-and-look-ups/names-and-codes-listings/names-and-codes-for-administrative-geography/index.html,Thanet District Council,17/09/2013,345600,1869,Swale Heating Ltd,SWA006,Director of Corporate Services and Transformation,Balance Sheet,Current Assets
http://www.ons.gov.uk/ons/guide-method/geography/products/names--codes-and-look-ups/names-and-codes-listings/names-and-codes-for-administrative-geography/index.html,Thanet District Council,17/09/2013,345601,2800,Swale Heating Ltd,SWA006,Director of Corporate Services and Transformation,Balance Sheet,Current Assets
http://www.ons.gov.uk/ons/guide-method/geography/products/names--codes-and-look-ups/names-and-codes-listings/names-and-codes-for-administrative-geography/index.html,Thanet District Council,17/09/2013,345602,1819,Swale Heating Ltd,SWA006,Director of Corporate Services and Transformation,Balance Sheet,Current Assets
http://www.ons.gov.uk/ons/guide-method/geography/products/names--codes-and-look-ups/names-and-codes-listings/names-and-codes-for-administrative-geography/index.html,Thanet District Council,17/09/2013,345603,2949,Swale Heating Ltd,SWA006,Director of Corporate Services and Transformation,Balance Sheet,Current Assets
http://www.ons.gov.uk/ons/guide-method/geography/products/names--codes-and-look-ups/names-and-codes-listings/names-and-codes-for-administrative-geography/index.html,Thanet District Council,17/09/2013,345604,1739,Swale Heating Ltd,SWA006,Director of Corporate Services and Transformation,Balance Sheet,Current Assets
http://www.ons.gov.uk/ons/guide-method/geography/products/names--codes-and-look-ups/names-and-codes-listings/names-and-codes-for-administrative-geography/index.html,Thanet District Council,17/09/2013,345605,1945,Swale Heating Ltd,SWA006,Director of Corporate Services and Transformation,Balance Sheet,Current Assets
http://www.ons.gov.uk/ons/guide-method/geography/products/names--codes-and-look-ups/names-and-codes-listings/names-and-codes-for-administrative-geography/index.html,Thanet District Council,17/09/2013,345606,1739,Swale Heating Ltd,SWA006,Director of Corporate Services and Transformation,Balance Sheet,Current Assets
http://www.ons.gov.uk/ons/guide-method/geography/products/names--codes-and-look-ups/names-and-codes-listings/names-and-codes-for-administrative-geography/index.html,Thanet District Council,17/09/2013,345607,1539,Swale Heating Ltd,SWA006,Director of Corporate Services and Transformation,Balance Sheet,Current Assets
http://www.ons.gov.uk/ons/guide-method/geography/products/names--codes-and-look-ups/names-and-codes-listings/names-and-codes-for-administrative-geography/index.html,Thanet District Council,17/09/2013,345608,1539,Swale Heating Ltd,SWA006,Director of Corporate Services and Transformation,Balance Sheet,Current Assets
http://www.ons.gov.uk/ons/guide-method/geography/products/names--codes-and-look-ups/names-and-codes-listings/names-and-codes-for-administrative-geography/index.html,Thanet District Council,17/09/2013,345609,1739,Swale Heating Ltd,SWA006,Director of Corporate Services and Transformation,Balance Sheet,Current Assets
http://www.ons.gov.uk/ons/guide-method/geography/products/names--codes-and-look-ups/names-and-codes-listings/names-and-codes-for-administrative-geography/index.html,Thanet District Council,17/09/2013,345610,1669,Swale Heating Ltd,SWA006,Director of Corporate Services and Transformation,Balance Sheet,Current Assets
http://www.ons.gov.uk/ons/guide-method/geography/products/names--codes-and-look-ups/names-and-codes-listings/names-and-codes-for-administrative-geography/index.html,Thanet District Council,17/09/2013,345611,1669,Swale Heating Ltd,SWA006,Director of Corporate Services and Transformation,Balance Sheet,Current Assets
http://www.ons.gov.uk/ons/guide-method/geography/products/names--codes-and-look-ups/names-and-codes-listings/names-and-codes-for-administrative-geography/index.html,Thanet District Council,17/09/2013,345612,1774,Swale Heating Ltd,SWA006,Director of Corporate Services and Transformation,Balance Sheet,Current Assets
http://www.ons.gov.uk/ons/guide-method/geography/products/names--codes-and-look-ups/names-and-codes-listings/names-and-codes-for-administrative-geography/index.html,Thanet District Council,17/09/2013,345613,1739,Swale Heating Ltd,SWA006,Director of Corporate Services and Transformation,Balance Sheet,Current Assets
http://www.ons.gov.uk/ons/guide-method/geography/products/names--codes-and-look-ups/names-and-codes-listings/names-and-codes-for-administrative-geography/index.html,Thanet District Council,17/09/2013,345614,1675,Swale Heating Ltd,SWA006,Director of Corporate Services and Transformation,Balance Sheet,Current Assets
http://www.ons.gov.uk/ons/guide-method/geography/products/names--codes-and-look-ups/names-and-codes-listings/names-and-codes-for-administrative-geography/index.html,Thanet District Council,17/09/2013,345615,1539,Swale Heating Ltd,SWA006,Director of Corporate Services and Transformation,Balance Sheet,Current Assets
http://www.ons.gov.uk/ons/guide-method/geography/products/names--codes-and-look-ups/names-and-codes-listings/names-and-codes-for-administrative-geography/index.html,Thanet District Council,17/09/2013,345616,1539,Swale Heating Ltd,SWA006,Director of Corporate Services and Transformation,Balance Sheet,Current Assets
http://www.ons.gov.uk/ons/guide-method/geography/products/names--codes-and-look-ups/names-and-codes-listings/names-and-codes-for-administrative-geography/index.html,Thanet District Council,17/09/2013,345617,2399,Swale Heating Ltd,SWA006,Director of Corporate Services and Transformation,Balance Sheet,Current Assets
http://www.ons.gov.uk/ons/guide-method/geography/products/names--codes-and-look-ups/names-and-codes-listings/names-and-codes-for-administrative-geography/index.html,Thanet District Council,17/09/2013,345618,2764,Swale Heating Ltd,SWA006,Director of Corporate Services and Transformation,Balance Sheet,Current Assets
http://www.ons.gov.uk/ons/guide-method/geography/products/names--codes-and-look-ups/names-and-codes-listings/names-and-codes-for-administrative-geography/index.html,Thanet District Council,17/09/2013,345572,575,The Knowledge Academy Limited,KNO007,Director of Corporate Services and Transformation,Revenue,Employees
http://www.ons.gov.uk/ons/guide-method/geography/products/names--codes-and-look-ups/names-and-codes-listings/names-and-codes-for-administrative-geography/index.html,Thanet District Council,17/09/2013,345578,3907.58,Tlc Stairlift Services Llp,TLC004,Director of Corporate Services and Transformation,Balance Sheet,Long Term Assets
http://www.ons.gov.uk/ons/guide-method/geography/products/names--codes-and-look-ups/names-and-codes-listings/names-and-codes-for-administrative-geography/index.html,Thanet District Council,17/09/2013,345242,359.7,Viridor Waste Management Ltd,VIR003,Director of Operational Services,Revenue,Third Party Payments
http://www.ons.gov.uk/ons/guide-method/geography/products/names--codes-and-look-ups/names-and-codes-listings/names-and-codes-for-administrative-geography/index.html,Thanet District Council,17/09/2013,345246,679.61,Viridor Waste Management Ltd,VIR003,Director of Operational Services,Revenue,Supplies And Services
http://www.ons.gov.uk/ons/guide-method/geography/products/names--codes-and-look-ups/names-and-codes-listings/names-and-codes-for-administrative-geography/index.html,Thanet District Council,17/09/2013,345247,210.84,Viridor Waste Management Ltd,VIR003,Director of Operational Services,Revenue,Supplies And Services
http://www.ons.gov.uk/ons/guide-method/geography/products/names--codes-and-look-ups/names-and-codes-listings/names-and-codes-for-administrative-geography/index.html,Thanet District Council,17/09/2013,345226,270,W Brazil & Bros,BRA001,Director of Operational Services,Revenue,Premises Related Expenditure
http://www.ons.gov.uk/ons/guide-method/geography/products/names--codes-and-look-ups/names-and-codes-listings/names-and-codes-for-administrative-geography/index.html,Thanet District Council,17/09/2013,345487,4455,Weir & Carmichael Limited,WEI004,Director of Corporate Services and Transformation,Balance Sheet,Long Term Assets
http://www.ons.gov.uk/ons/guide-method/geography/products/names--codes-and-look-ups/names-and-codes-listings/names-and-codes-for-administrative-geography/index.html,Thanet District Council,17/09/2013,345585,11147,Wessex Lift Company Ltd,WES031,Director of Corporate Services and Transformation,Balance Sheet,Long Term Assets
http://www.ons.gov.uk/ons/guide-method/geography/products/names--codes-and-look-ups/names-and-codes-listings/names-and-codes-for-administrative-geography/index.html,Thanet District Council,17/09/2013,345222,390,Xma Ltd,XMA001,East Kent Shared Services,Revenue,Supplies And Services
http://www.ons.gov.uk/ons/guide-method/geography/products/names--codes-and-look-ups/names-and-codes-listings/names-and-codes-for-administrative-geography/index.html,Thanet District Council,18/09/2013,345652,239268,Kent & Medway Towns Fire Authority,KMT001,Director of Corporate Services and Transformation,Balance Sheet,Reserves
http://www.ons.gov.uk/ons/guide-method/geography/products/names--codes-and-look-ups/names-and-codes-listings/names-and-codes-for-administrative-geography/index.html,Thanet District Council,18/09/2013,345651,3534463,Kent County Council,KCC022,Director of Corporate Services and Transformation,Balance Sheet,Reserves
http://www.ons.gov.uk/ons/guide-method/geography/products/names--codes-and-look-ups/names-and-codes-listings/names-and-codes-for-administrative-geography/index.html,Thanet District Council,18/09/2013,345653,447878,Kent Police Authority,KPA003,Director of Corporate Services and Transformation,Balance Sheet,Reserves
http://www.ons.gov.uk/ons/guide-method/geography/products/names--codes-and-look-ups/names-and-codes-listings/names-and-codes-for-administrative-geography/index.html,Thanet District Council,19/09/2013,N/A,77,REDACTED PERSONAL DATA,N/A,Director of Operational Services,Revenue,Supplies And Services
http://www.ons.gov.uk/ons/guide-method/geography/products/names--codes-and-look-ups/names-and-codes-listings/names-and-codes-for-administrative-geography/index.html,Thanet District Council,19/09/2013,N/A,227.25,REDACTED PERSONAL DATA,N/A,Director of Operational Services,Revenue,Transport Related Expenditure
http://www.ons.gov.uk/ons/guide-method/geography/products/names--codes-and-look-ups/names-and-codes-listings/names-and-codes-for-administrative-geography/index.html,Thanet District Council,19/09/2013,N/A,306.31,REDACTED PERSONAL DATA,N/A,Director of Operational Services,Revenue,Transport Related Expenditure
http://www.ons.gov.uk/ons/guide-method/geography/products/names--codes-and-look-ups/names-and-codes-listings/names-and-codes-for-administrative-geography/index.html,Thanet District Council,19/09/2013,N/A,560.8,REDACTED PERSONAL DATA,N/A,East Kent Shared Services,Revenue,Transport Related Expenditure
http://www.ons.gov.uk/ons/guide-method/geography/products/names--codes-and-look-ups/names-and-codes-listings/names-and-codes-for-administrative-geography/index.html,Thanet District Council,19/09/2013,N/A,279.83,REDACTED PERSONAL DATA,N/A,Director of Corporate Services and Transformation,Revenue,Transport Related Expenditure
http://www.ons.gov.uk/ons/guide-method/geography/products/names--codes-and-look-ups/names-and-codes-listings/names-and-codes-for-administrative-geography/index.html,Thanet District Council,19/09/2013,N/A,398.01,REDACTED PERSONAL DATA,N/A,Director of Corporate Services and Transformation,Revenue,Transport Related Expenditure
http://www.ons.gov.uk/ons/guide-method/geography/products/names--codes-and-look-ups/names-and-codes-listings/names-and-codes-for-administrative-geography/index.html,Thanet District Council,19/09/2013,N/A,261.88,REDACTED PERSONAL DATA,N/A,Director of Community Services,Revenue,Transport Related Expenditure
http://www.ons.gov.uk/ons/guide-method/geography/products/names--codes-and-look-ups/names-and-codes-listings/names-and-codes-for-administrative-geography/index.html,Thanet District Council,19/09/2013,N/A,328.05,REDACTED PERSONAL DATA,N/A,Director of Corporate Services and Transformation,Revenue,Transport Related Expenditure
http://www.ons.gov.uk/ons/guide-method/geography/products/names--codes-and-look-ups/names-and-codes-listings/names-and-codes-for-administrative-geography/index.html,Thanet District Council,19/09/2013,N/A,339.4,REDACTED PERSONAL DATA,N/A,Director of Community Services,Revenue,Transport Related Expenditure
http://www.ons.gov.uk/ons/guide-method/geography/products/names--codes-and-look-ups/names-and-codes-listings/names-and-codes-for-administrative-geography/index.html,Thanet District Council,19/09/2013,N/A,316.71,REDACTED PERSONAL DATA,N/A,Director of Operational Services,Revenue,Transport Related Expenditure
http://www.ons.gov.uk/ons/guide-method/geography/products/names--codes-and-look-ups/names-and-codes-listings/names-and-codes-for-administrative-geography/index.html,Thanet District Council,19/09/2013,N/A,23.78,REDACTED PERSONAL DATA,N/A,Director of Community Services,Revenue,Supplies And Services
http://www.ons.gov.uk/ons/guide-method/geography/products/names--codes-and-look-ups/names-and-codes-listings/names-and-codes-for-administrative-geography/index.html,Thanet District Council,19/09/2013,N/A,692.98,REDACTED PERSONAL DATA,N/A,Director of Community Services,Revenue,Transport Related Expenditure
http://www.ons.gov.uk/ons/guide-method/geography/products/names--codes-and-look-ups/names-and-codes-listings/names-and-codes-for-administrative-geography/index.html,Thanet District Council,19/09/2013,N/A,461.36,REDACTED PERSONAL DATA,N/A,Director of Corporate Services and Transformation,Revenue,Transport Related Expenditure
http://www.ons.gov.uk/ons/guide-method/geography/products/names--codes-and-look-ups/names-and-codes-listings/names-and-codes-for-administrative-geography/index.html,Thanet District Council,19/09/2013,N/A,5.85,REDACTED PERSONAL DATA,N/A,Director of Community Services,Revenue,Supplies And Services
http://www.ons.gov.uk/ons/guide-method/geography/products/names--codes-and-look-ups/names-and-codes-listings/names-and-codes-for-administrative-geography/index.html,Thanet District Council,19/09/2013,N/A,514.97,REDACTED PERSONAL DATA,N/A,Director of Community Services,Revenue,Transport Related Expenditure
http://www.ons.gov.uk/ons/guide-method/geography/products/names--codes-and-look-ups/names-and-codes-listings/names-and-codes-for-administrative-geography/index.html,Thanet District Council,19/09/2013,N/A,359.25,REDACTED PERSONAL DATA,N/A,Director of Corporate Services and Transformation,Revenue,Transport Related Expenditure
http://www.ons.gov.uk/ons/guide-method/geography/products/names--codes-and-look-ups/names-and-codes-listings/names-and-codes-for-administrative-geography/index.html,Thanet District Council,19/09/2013,N/A,8.32,REDACTED PERSONAL DATA,N/A,Director of Operational Services,Revenue,Supplies And Services
http://www.ons.gov.uk/ons/guide-method/geography/products/names--codes-and-look-ups/names-and-codes-listings/names-and-codes-for-administrative-geography/index.html,Thanet District Council,19/09/2013,N/A,488.78,REDACTED PERSONAL DATA,N/A,Director of Operational Services,Revenue,Transport Related Expenditure
http://www.ons.gov.uk/ons/guide-method/geography/products/names--codes-and-look-ups/names-and-codes-listings/names-and-codes-for-administrative-geography/index.html,Thanet District Council,19/09/2013,N/A,475.54,REDACTED PERSONAL DATA,N/A,East Kent Shared Services,Revenue,Transport Related Expenditure
http://www.ons.gov.uk/ons/guide-method/geography/products/names--codes-and-look-ups/names-and-codes-listings/names-and-codes-for-administrative-geography/index.html,Thanet District Council,19/09/2013,N/A,214,REDACTED PERSONAL DATA,N/A,Director of Community Services,Revenue,Employees
http://www.ons.gov.uk/ons/guide-method/geography/products/names--codes-and-look-ups/names-and-codes-listings/names-and-codes-for-administrative-geography/index.html,Thanet District Council,19/09/2013,N/A,70.5,REDACTED PERSONAL DATA,N/A,Director of Community Services,Revenue,Supplies And Services
http://www.ons.gov.uk/ons/guide-method/geography/products/names--codes-and-look-ups/names-and-codes-listings/names-and-codes-for-administrative-geography/index.html,Thanet District Council,19/09/2013,N/A,464.19,REDACTED PERSONAL DATA,N/A,East Kent Shared Services,Revenue,Transport Related Expenditure
http://www.ons.gov.uk/ons/guide-method/geography/products/names--codes-and-look-ups/names-and-codes-listings/names-and-codes-for-administrative-geography/index.html,Thanet District Council,19/09/2013,N/A,335.62,REDACTED PERSONAL DATA,N/A,East Kent Shared Services,Revenue,Transport Related Expenditure
http://www.ons.gov.uk/ons/guide-method/geography/products/names--codes-and-look-ups/names-and-codes-listings/names-and-codes-for-administrative-geography/index.html,Thanet District Council,19/09/2013,N/A,411.25,REDACTED PERSONAL DATA,N/A,East Kent Shared Services,Revenue,Transport Related Expenditure
http://www.ons.gov.uk/ons/guide-method/geography/products/names--codes-and-look-ups/names-and-codes-listings/names-and-codes-for-administrative-geography/index.html,Thanet District Council,24/09/2013,346040,555.61,Acol Parish Council,ACO001,Director of Operational Services,Revenue,Third Party Payments
http://www.ons.gov.uk/ons/guide-method/geography/products/names--codes-and-look-ups/names-and-codes-listings/names-and-codes-for-administrative-geography/index.html,Thanet District Council,24/09/2013,346040,2008,Acol Parish Council,ACO001,Director of Corporate Services and Transformation,Balance Sheet,Reserves
http://www.ons.gov.uk/ons/guide-method/geography/products/names--codes-and-look-ups/names-and-codes-listings/names-and-codes-for-administrative-geography/index.html,Thanet District Council,24/09/2013,344770,484,All Access Ltd,ALL031,Director of Corporate Services and Transformation,Balance Sheet,Current Assets
http://www.ons.gov.uk/ons/guide-method/geography/products/names--codes-and-look-ups/names-and-codes-listings/names-and-codes-for-administrative-geography/index.html,Thanet District Council,24/09/2013,346042,278.92,Allstar Business Solutions Ltd,ALL038,Director of Operational Services,Revenue,Transport Related Expenditure
http://www.ons.gov.uk/ons/guide-method/geography/products/names--codes-and-look-ups/names-and-codes-listings/names-and-codes-for-administrative-geography/index.html,Thanet District Council,24/09/2013,345626,485,Ashford Borough Council,ASH001,Director of Community Services,Revenue,Supplies And Services
http://www.ons.gov.uk/ons/guide-method/geography/products/names--codes-and-look-ups/names-and-codes-listings/names-and-codes-for-administrative-geography/index.html,Thanet District Council,24/09/2013,346049,4557.68,Better Beaches Ltd,BET009,Director of Operational Services,Revenue,Supplies And Services
http://www.ons.gov.uk/ons/guide-method/geography/products/names--codes-and-look-ups/names-and-codes-listings/names-and-codes-for-administrative-geography/index.html,Thanet District Council,24/09/2013,346061,4557.68,Better Beaches Ltd,BET009,Director of Operational Services,Revenue,Supplies And Services
http://www.ons.gov.uk/ons/guide-method/geography/products/names--codes-and-look-ups/names-and-codes-listings/names-and-codes-for-administrative-geography/index.html,Thanet District Council,24/09/2013,346039,2202.07,Birchington Parish Council,BIR001,Director of Operational Services,Revenue,Third Party Payments
http://www.ons.gov.uk/ons/guide-method/geography/products/names--codes-and-look-ups/names-and-codes-listings/names-and-codes-for-administrative-geography/index.html,Thanet District Council,24/09/2013,346039,23854,Birchington Parish Council,BIR001,Director of Corporate Services and Transformation,Balance Sheet,Reserves
http://www.ons.gov.uk/ons/guide-method/geography/products/names--codes-and-look-ups/names-and-codes-listings/names-and-codes-for-administrative-geography/index.html,Thanet District Council,24/09/2013,345108,819.42,Brandon Hire Plc,BRA005,Director of Operational Services,Revenue,Supplies And Services
http://www.ons.gov.uk/ons/guide-method/geography/products/names--codes-and-look-ups/names-and-codes-listings/names-and-codes-for-administrative-geography/index.html,Thanet District Council,24/09/2013,345421,8610,British Telecommunications Plc,BTE005,Director of Corporate Services and Transformation,Revenue,Supplies And Services
http://www.ons.gov.uk/ons/guide-method/geography/products/names--codes-and-look-ups/names-and-codes-listings/names-and-codes-for-administrative-geography/index.html,Thanet District Council,24/09/2013,346038,12826.06,Broadstairs & St Peters Town Council,BRO005,Director of Operational Services,Revenue,Third Party Payments
http://www.ons.gov.uk/ons/guide-method/geography/products/names--codes-and-look-ups/names-and-codes-listings/names-and-codes-for-administrative-geography/index.html,Thanet District Council,24/09/2013,346038,96984.5,Broadstairs & St Peters Town Council,BRO005,Director of Corporate Services and Transformation,Balance Sheet,Reserves
http://www.ons.gov.uk/ons/guide-method/geography/products/names--codes-and-look-ups/names-and-codes-listings/names-and-codes-for-administrative-geography/index.html,Thanet District Council,24/09/2013,345458,780,Broadstairs Metal Craft,BRO058,Director of Operational Services,Revenue,Premises Related Expenditure
http://www.ons.gov.uk/ons/guide-method/geography/products/names--codes-and-look-ups/names-and-codes-listings/names-and-codes-for-administrative-geography/index.html,Thanet District Council,24/09/2013,345455,59634.99,Canterbury City Council,CAN004,East Kent Shared Services,Revenue,Supplies And Services
http://www.ons.gov.uk/ons/guide-method/geography/products/names--codes-and-look-ups/names-and-codes-listings/names-and-codes-for-administrative-geography/index.html,Thanet District Council,24/09/2013,345566,1378.89,Channel Commercials Plc,CCO001,Director of Operational Services,Revenue,Transport Related Expenditure
http://www.ons.gov.uk/ons/guide-method/geography/products/names--codes-and-look-ups/names-and-codes-listings/names-and-codes-for-administrative-geography/index.html,Thanet District Council,24/09/2013,345624,230,Chatterbox Ltd,CHA006,East Kent Shared Services,Revenue,Supplies And Services
http://www.ons.gov.uk/ons/guide-method/geography/products/names--codes-and-look-ups/names-and-codes-listings/names-and-codes-for-administrative-geography/index.html,Thanet District Council,24/09/2013,345876,230,Chatterbox Ltd,CHA006,East Kent Shared Services,Revenue,Supplies And Services
http://www.ons.gov.uk/ons/guide-method/geography/products/names--codes-and-look-ups/names-and-codes-listings/names-and-codes-for-administrative-geography/index.html,Thanet District Council,24/09/2013,346052,455,Cipfa Business Ltd,CIP008,Director of Corporate Services and Transformation,Revenue,Supplies And Services
http://www.ons.gov.uk/ons/guide-method/geography/products/names--codes-and-look-ups/names-and-codes-listings/names-and-codes-for-administrative-geography/index.html,Thanet District Council,24/09/2013,346068,697.5,Cipfa Business Ltd,CIP008,Director of Corporate Services and Transformation,Revenue,Supplies And Services
http://www.ons.gov.uk/ons/guide-method/geography/products/names--codes-and-look-ups/names-and-codes-listings/names-and-codes-for-administrative-geography/index.html,Thanet District Council,24/09/2013,346068,697.5,Cipfa Business Ltd,CIP008,Director of Operational Services,Revenue,Supplies And Services
http://www.ons.gov.uk/ons/guide-method/geography/products/names--codes-and-look-ups/names-and-codes-listings/names-and-codes-for-administrative-geography/index.html,Thanet District Council,24/09/2013,346037,498.46,Cliffsend Parish Council,CLI015,Director of Operational Services,Revenue,Third Party Payments
http://www.ons.gov.uk/ons/guide-method/geography/products/names--codes-and-look-ups/names-and-codes-listings/names-and-codes-for-administrative-geography/index.html,Thanet District Council,24/09/2013,346037,6195,Cliffsend Parish Council,CLI015,Director of Corporate Services and Transformation,Balance Sheet,Reserves
http://www.ons.gov.uk/ons/guide-method/geography/products/names--codes-and-look-ups/names-and-codes-listings/names-and-codes-for-administrative-geography/index.html,Thanet District Council,24/09/2013,345481,2724,Commercial Services Trading Ltd,COM048,Director of Operational Services,Revenue,Transport Related Expenditure
http://www.ons.gov.uk/ons/guide-method/geography/products/names--codes-and-look-ups/names-and-codes-listings/names-and-codes-for-administrative-geography/index.html,Thanet District Council,24/09/2013,345831,209.42,Computerland Uk Limited,COM045,East Kent Shared Services,Revenue,Supplies And Services
http://www.ons.gov.uk/ons/guide-method/geography/products/names--codes-and-look-ups/names-and-codes-listings/names-and-codes-for-administrative-geography/index.html,Thanet District Council,24/09/2013,345844,7552.5,Craemer Uk Limited,CRA013,Director of Corporate Services and Transformation,Balance Sheet,Long Term Assets
http://www.ons.gov.uk/ons/guide-method/geography/products/names--codes-and-look-ups/names-and-codes-listings/names-and-codes-for-administrative-geography/index.html,Thanet District Council,24/09/2013,346066,4279.65,Disabled Supplies Ltd,DIS001,Director of Corporate Services and Transformation,Balance Sheet,Long Term Assets
http://www.ons.gov.uk/ons/guide-method/geography/products/names--codes-and-look-ups/names-and-codes-listings/names-and-codes-for-administrative-geography/index.html,Thanet District Council,24/09/2013,345698,1012,Disclosure And Barring Service,DIS017,Director of Corporate Services and Transformation,Revenue,Supplies And Services
http://www.ons.gov.uk/ons/guide-method/geography/products/names--codes-and-look-ups/names-and-codes-listings/names-and-codes-for-administrative-geography/index.html,Thanet District Council,24/09/2013,345415,1413.33,E Saunders Margate Ltd,SAU001,Director of Corporate Services and Transformation,Balance Sheet,Current Assets
http://www.ons.gov.uk/ons/guide-method/geography/products/names--codes-and-look-ups/names-and-codes-listings/names-and-codes-for-administrative-geography/index.html,Thanet District Council,24/09/2013,345437,561.6,Eagle Envelopes Ltd,EAG001,East Kent Shared Services,Revenue,Supplies And Services
http://www.ons.gov.uk/ons/guide-method/geography/products/names--codes-and-look-ups/names-and-codes-listings/names-and-codes-for-administrative-geography/index.html,Thanet District Council,24/09/2013,346063,211,East Kent Property Searches,EKP001,Director of Community Services,Revenue,Supplies And Services
http://www.ons.gov.uk/ons/guide-method/geography/products/names--codes-and-look-ups/names-and-codes-listings/names-and-codes-for-administrative-geography/index.html,Thanet District Council,24/09/2013,345060,2210.45,Ecologia Environmental Solutions Ltd,ECO004,Director of Corporate Services and Transformation,Balance Sheet,Long Term Assets
http://www.ons.gov.uk/ons/guide-method/geography/products/names--codes-and-look-ups/names-and-codes-listings/names-and-codes-for-administrative-geography/index.html,Thanet District Council,24/09/2013,346048,808.23,Electoral Reform Services,ELE010,Director of Corporate Services and Transformation,Revenue,Supplies And Services
http://www.ons.gov.uk/ons/guide-method/geography/products/names--codes-and-look-ups/names-and-codes-listings/names-and-codes-for-administrative-geography/index.html,Thanet District Council,24/09/2013,346025,327.1,Family Mosaic Housing,FAM001,Director of Corporate Services and Transformation,Balance Sheet,Long Term Assets
http://www.ons.gov.uk/ons/guide-method/geography/products/names--codes-and-look-ups/names-and-codes-listings/names-and-codes-for-administrative-geography/index.html,Thanet District Council,24/09/2013,346027,675.04,Family Mosaic Housing,FAM001,Director of Corporate Services and Transformation,Balance Sheet,Long Term Assets
http://www.ons.gov.uk/ons/guide-method/geography/products/names--codes-and-look-ups/names-and-codes-listings/names-and-codes-for-administrative-geography/index.html,Thanet District Council,24/09/2013,346029,733.84,Family Mosaic Housing,FAM001,Director of Corporate Services and Transformation,Balance Sheet,Long Term Assets
http://www.ons.gov.uk/ons/guide-method/geography/products/names--codes-and-look-ups/names-and-codes-listings/names-and-codes-for-administrative-geography/index.html,Thanet District Council,24/09/2013,346065,513.56,Family Mosaic Housing,FAM001,Director of Corporate Services and Transformation,Balance Sheet,Long Term Assets
http://www.ons.gov.uk/ons/guide-method/geography/products/names--codes-and-look-ups/names-and-codes-listings/names-and-codes-for-administrative-geography/index.html,Thanet District Council,24/09/2013,345687,1127,Frandham Boarding Kennels,FRA010,Director of Corporate Services and Transformation,Revenue,Supplies And Services
http://www.ons.gov.uk/ons/guide-method/geography/products/names--codes-and-look-ups/names-and-codes-listings/names-and-codes-for-administrative-geography/index.html,Thanet District Council,24/09/2013,345639,1501.4,Gb Sport & Leisure Uk Ltd,GBS002,Director of Operational Services,Revenue,Premises Related Expenditure
http://www.ons.gov.uk/ons/guide-method/geography/products/names--codes-and-look-ups/names-and-codes-listings/names-and-codes-for-administrative-geography/index.html,Thanet District Council,24/09/2013,345479,230,Generation Sports Ltd,GEN011,Director of Community Services,Revenue,Supplies And Services
http://www.ons.gov.uk/ons/guide-method/geography/products/names--codes-and-look-ups/names-and-codes-listings/names-and-codes-for-administrative-geography/index.html,Thanet District Council,24/09/2013,345480,780,Generation Sports Ltd,GEN011,Director of Community Services,Revenue,Supplies And Services
http://www.ons.gov.uk/ons/guide-method/geography/products/names--codes-and-look-ups/names-and-codes-listings/names-and-codes-for-administrative-geography/index.html,Thanet District Council,24/09/2013,345839,193,Gerlack & Thorne Ltd,GER001,Director of Community Services,Revenue,Premises Related Expenditure
http://www.ons.gov.uk/ons/guide-method/geography/products/names--codes-and-look-ups/names-and-codes-listings/names-and-codes-for-administrative-geography/index.html,Thanet District Council,24/09/2013,345839,665,Gerlack & Thorne Ltd,GER001,Director of Operational Services,Revenue,Premises Related Expenditure
http://www.ons.gov.uk/ons/guide-method/geography/products/names--codes-and-look-ups/names-and-codes-listings/names-and-codes-for-administrative-geography/index.html,Thanet District Council,24/09/2013,345840,63,Gerlack & Thorne Ltd,GER001,Director of Community Services,Revenue,Premises Related Expenditure
http://www.ons.gov.uk/ons/guide-method/geography/products/names--codes-and-look-ups/names-and-codes-listings/names-and-codes-for-administrative-geography/index.html,Thanet District Council,24/09/2013,345840,718,Gerlack & Thorne Ltd,GER001,Director of Operational Services,Revenue,Premises Related Expenditure
http://www.ons.gov.uk/ons/guide-method/geography/products/names--codes-and-look-ups/names-and-codes-listings/names-and-codes-for-administrative-geography/index.html,Thanet District Council,24/09/2013,346057,1900,H M Revenue & Customs,HMR004,Director of Corporate Services and Transformation,Balance Sheet,Long Term Assets
http://www.ons.gov.uk/ons/guide-method/geography/products/names--codes-and-look-ups/names-and-codes-listings/names-and-codes-for-administrative-geography/index.html,Thanet District Council,24/09/2013,345638,284.42,Haynes Of Maidstone Ltd,HAY008,Director of Operational Services,Revenue,Transport Related Expenditure
http://www.ons.gov.uk/ons/guide-method/geography/products/names--codes-and-look-ups/names-and-codes-listings/names-and-codes-for-administrative-geography/index.html,Thanet District Council,24/09/2013,345464,9178.32,Hr Go Recruitment Ltd,HRG002,Director of Operational Services,Revenue,Employees
http://www.ons.gov.uk/ons/guide-method/geography/products/names--codes-and-look-ups/names-and-codes-listings/names-and-codes-for-administrative-geography/index.html,Thanet District Council,24/09/2013,345904,8354.24,Hr Go Recruitment Ltd,HRG002,Director of Operational Services,Revenue,Employees
http://www.ons.gov.uk/ons/guide-method/geography/products/names--codes-and-look-ups/names-and-codes-listings/names-and-codes-for-administrative-geography/index.html,Thanet District Council,24/09/2013,345905,1328.79,Hr Go Recruitment Ltd,HRG002,Director of Operational Services,Revenue,Employees
http://www.ons.gov.uk/ons/guide-method/geography/products/names--codes-and-look-ups/names-and-codes-listings/names-and-codes-for-administrative-geography/index.html,Thanet District Council,24/09/2013,345906,1008.57,Hr Go Recruitment Ltd,HRG002,Director of Operational Services,Revenue,Employees
http://www.ons.gov.uk/ons/guide-method/geography/products/names--codes-and-look-ups/names-and-codes-listings/names-and-codes-for-administrative-geography/index.html,Thanet District Council,24/09/2013,345907,876.65,Hr Go Recruitment Ltd,HRG002,Director of Operational Services,Revenue,Employees
http://www.ons.gov.uk/ons/guide-method/geography/products/names--codes-and-look-ups/names-and-codes-listings/names-and-codes-for-administrative-geography/index.html,Thanet District Council,24/09/2013,346060,488.56,Hr Go Recruitment Ltd,HRG002,Director of Operational Services,Revenue,Employees
http://www.ons.gov.uk/ons/guide-method/geography/products/names--codes-and-look-ups/names-and-codes-listings/names-and-codes-for-administrative-geography/index.html,Thanet District Council,24/09/2013,345674,302.5,Hse Training Ltd,HSE002,Director of Operational Services,Revenue,Employees
http://www.ons.gov.uk/ons/guide-method/geography/products/names--codes-and-look-ups/names-and-codes-listings/names-and-codes-for-administrative-geography/index.html,Thanet District Council,24/09/2013,345447,950,Irrv,IRR002,East Kent Shared Services,Revenue,Supplies And Services
http://www.ons.gov.uk/ons/guide-method/geography/products/names--codes-and-look-ups/names-and-codes-listings/names-and-codes-for-administrative-geography/index.html,Thanet District Council,24/09/2013,345174,4387.25,J Rospo Building Contractors,ROS001,Director of Operational Services,Revenue,Premises Related Expenditure
http://www.ons.gov.uk/ons/guide-method/geography/products/names--codes-and-look-ups/names-and-codes-listings/names-and-codes-for-administrative-geography/index.html,Thanet District Council,24/09/2013,345924,842.55,Kenhire Limited,KEN042,Director of Operational Services,Revenue,Transport Related Expenditure
http://www.ons.gov.uk/ons/guide-method/geography/products/names--codes-and-look-ups/names-and-codes-listings/names-and-codes-for-administrative-geography/index.html,Thanet District Council,24/09/2013,345462,2880,Kent County Council,KCC002,Director of Corporate Services and Transformation,Revenue,Supplies And Services
http://www.ons.gov.uk/ons/guide-method/geography/products/names--codes-and-look-ups/names-and-codes-listings/names-and-codes-for-administrative-geography/index.html,Thanet District Council,24/09/2013,345429,381.3,Kent County Council (Kcs),KCC003,Director of Corporate Services and Transformation,Revenue,Supplies And Services
http://www.ons.gov.uk/ons/guide-method/geography/products/names--codes-and-look-ups/names-and-codes-listings/names-and-codes-for-administrative-geography/index.html,Thanet District Council,24/09/2013,345467,5503.36,Kent County Council (Kcs),KCC003,Director of Operational Services,Revenue,Premises Related Expenditure
http://www.ons.gov.uk/ons/guide-method/geography/products/names--codes-and-look-ups/names-and-codes-listings/names-and-codes-for-administrative-geography/index.html,Thanet District Council,24/09/2013,345468,1529.03,Kent County Council (Kcs),KCC003,Director of Operational Services,Revenue,Premises Related Expenditure
http://www.ons.gov.uk/ons/guide-method/geography/products/names--codes-and-look-ups/names-and-codes-listings/names-and-codes-for-administrative-geography/index.html,Thanet District Council,24/09/2013,345469,4917.23,Kent County Council (Kcs),KCC003,Director of Operational Services,Revenue,Premises Related Expenditure
http://www.ons.gov.uk/ons/guide-method/geography/products/names--codes-and-look-ups/names-and-codes-listings/names-and-codes-for-administrative-geography/index.html,Thanet District Council,24/09/2013,345661,394.83,Kent County Council (Kcs),KCC003,Director of Operational Services,Revenue,Premises Related Expenditure
http://www.ons.gov.uk/ons/guide-method/geography/products/names--codes-and-look-ups/names-and-codes-listings/names-and-codes-for-administrative-geography/index.html,Thanet District Council,24/09/2013,345665,290.02,Kent County Council (Kcs),KCC003,Director of Operational Services,Revenue,Premises Related Expenditure
http://www.ons.gov.uk/ons/guide-method/geography/products/names--codes-and-look-ups/names-and-codes-listings/names-and-codes-for-administrative-geography/index.html,Thanet District Council,24/09/2013,345666,650.94,Kent County Council (Kcs),KCC003,Director of Community Services,Revenue,Premises Related Expenditure
http://www.ons.gov.uk/ons/guide-method/geography/products/names--codes-and-look-ups/names-and-codes-listings/names-and-codes-for-administrative-geography/index.html,Thanet District Council,24/09/2013,345667,299.53,Kent County Council (Kcs),KCC003,Director of Operational Services,Revenue,Premises Related Expenditure
http://www.ons.gov.uk/ons/guide-method/geography/products/names--codes-and-look-ups/names-and-codes-listings/names-and-codes-for-administrative-geography/index.html,Thanet District Council,24/09/2013,345668,329.43,Kent County Council (Kcs),KCC003,Director of Operational Services,Revenue,Premises Related Expenditure
http://www.ons.gov.uk/ons/guide-method/geography/products/names--codes-and-look-ups/names-and-codes-listings/names-and-codes-for-administrative-geography/index.html,Thanet District Council,24/09/2013,345927,492.22,Kent County Council (Kcs),KCC003,Director of Operational Services,Revenue,Premises Related Expenditure
http://www.ons.gov.uk/ons/guide-method/geography/products/names--codes-and-look-ups/names-and-codes-listings/names-and-codes-for-administrative-geography/index.html,Thanet District Council,24/09/2013,345928,1227.69,Kent County Council (Kcs),KCC003,Director of Operational Services,Revenue,Premises Related Expenditure
http://www.ons.gov.uk/ons/guide-method/geography/products/names--codes-and-look-ups/names-and-codes-listings/names-and-codes-for-administrative-geography/index.html,Thanet District Council,24/09/2013,345929,1468.29,Kent County Council (Kcs),KCC003,Director of Operational Services,Revenue,Premises Related Expenditure
http://www.ons.gov.uk/ons/guide-method/geography/products/names--codes-and-look-ups/names-and-codes-listings/names-and-codes-for-administrative-geography/index.html,Thanet District Council,24/09/2013,345930,1514.06,Kent County Council (Kcs),KCC003,Director of Operational Services,Revenue,Premises Related Expenditure
http://www.ons.gov.uk/ons/guide-method/geography/products/names--codes-and-look-ups/names-and-codes-listings/names-and-codes-for-administrative-geography/index.html,Thanet District Council,24/09/2013,345931,932.33,Kent County Council (Kcs),KCC003,Director of Operational Services,Revenue,Premises Related Expenditure
http://www.ons.gov.uk/ons/guide-method/geography/products/names--codes-and-look-ups/names-and-codes-listings/names-and-codes-for-administrative-geography/index.html,Thanet District Council,24/09/2013,345995,65.79,Kent County Council (Kcs),KCC003,East Kent Shared Services,Revenue,Supplies And Services
http://www.ons.gov.uk/ons/guide-method/geography/products/names--codes-and-look-ups/names-and-codes-listings/names-and-codes-for-administrative-geography/index.html,Thanet District Council,24/09/2013,345995,212.12,Kent County Council (Kcs),KCC003,Director of Operational Services,Revenue,Supplies And Services
http://www.ons.gov.uk/ons/guide-method/geography/products/names--codes-and-look-ups/names-and-codes-listings/names-and-codes-for-administrative-geography/index.html,Thanet District Council,24/09/2013,345995,3614.51,Kent County Council (Kcs),KCC003,Director of Corporate Services and Transformation,Revenue,Supplies And Services
http://www.ons.gov.uk/ons/guide-method/geography/products/names--codes-and-look-ups/names-and-codes-listings/names-and-codes-for-administrative-geography/index.html,Thanet District Council,24/09/2013,344879,52938.96,Kent County Council Re Pension Fund,KCC001,Director of Corporate Services and Transformation,Revenue,Employees
http://www.ons.gov.uk/ons/guide-method/geography/products/names--codes-and-look-ups/names-and-codes-listings/names-and-codes-for-administrative-geography/index.html,Thanet District Council,24/09/2013,345530,3750,Kent County Council Re Pension Fund,KCC001,Director of Corporate Services and Transformation,Revenue,Employees
http://www.ons.gov.uk/ons/guide-method/geography/products/names--codes-and-look-ups/names-and-codes-listings/names-and-codes-for-administrative-geography/index.html,Thanet District Council,24/09/2013,345531,-3750,Kent County Council Re Pension Fund,KCC001,Director of Corporate Services and Transformation,Revenue,Employees
http://www.ons.gov.uk/ons/guide-method/geography/products/names--codes-and-look-ups/names-and-codes-listings/names-and-codes-for-administrative-geography/index.html,Thanet District Council,24/09/2013,345908,1021.7,Ling Metals Limited,LIN004,Director of Operational Services,Revenue,Premises Related Expenditure
http://www.ons.gov.uk/ons/guide-method/geography/products/names--codes-and-look-ups/names-and-codes-listings/names-and-codes-for-administrative-geography/index.html,Thanet District Council,24/09/2013,345427,1460.63,M T Coleman,COL029,Director of Operational Services,Revenue,Transport Related Expenditure
http://www.ons.gov.uk/ons/guide-method/geography/products/names--codes-and-look-ups/names-and-codes-listings/names-and-codes-for-administrative-geography/index.html,Thanet District Council,24/09/2013,345867,1518.15,Macfarlane Telesystems Limited,MAC005,East Kent Shared Services,Revenue,Supplies And Services
http://www.ons.gov.uk/ons/guide-method/geography/products/names--codes-and-look-ups/names-and-codes-listings/names-and-codes-for-administrative-geography/index.html,Thanet District Council,24/09/2013,346036,2681,Manston Parish Council,MAN001,Director of Operational Services,Revenue,Third Party Payments
http://www.ons.gov.uk/ons/guide-method/geography/products/names--codes-and-look-ups/names-and-codes-listings/names-and-codes-for-administrative-geography/index.html,Thanet District Council,24/09/2013,346036,7761,Manston Parish Council,MAN001,Director of Corporate Services and Transformation,Balance Sheet,Reserves
http://www.ons.gov.uk/ons/guide-method/geography/products/names--codes-and-look-ups/names-and-codes-listings/names-and-codes-for-administrative-geography/index.html,Thanet District Council,24/09/2013,346035,14250.23,Margate Charter Trustees,MCT001,Director of Operational Services,Revenue,Third Party Payments
http://www.ons.gov.uk/ons/guide-method/geography/products/names--codes-and-look-ups/names-and-codes-listings/names-and-codes-for-administrative-geography/index.html,Thanet District Council,24/09/2013,346035,42303.5,Margate Charter Trustees,MCT001,Director of Corporate Services and Transformation,Balance Sheet,Reserves
http://www.ons.gov.uk/ons/guide-method/geography/products/names--codes-and-look-ups/names-and-codes-listings/names-and-codes-for-administrative-geography/index.html,Thanet District Council,24/09/2013,345675,1026.87,Marine Equipment Trader Ltd,MAR083,Director of Operational Services,Revenue,Premises Related Expenditure
http://www.ons.gov.uk/ons/guide-method/geography/products/names--codes-and-look-ups/names-and-codes-listings/names-and-codes-for-administrative-geography/index.html,Thanet District Council,24/09/2013,344736,1761.33,Mears Ltd,MEA003,Director of Community Services,Revenue,Premises Related Expenditure
http://www.ons.gov.uk/ons/guide-method/geography/products/names--codes-and-look-ups/names-and-codes-listings/names-and-codes-for-administrative-geography/index.html,Thanet District Council,24/09/2013,344737,1880.38,Mears Ltd,MEA003,Director of Community Services,Revenue,Premises Related Expenditure
http://www.ons.gov.uk/ons/guide-method/geography/products/names--codes-and-look-ups/names-and-codes-listings/names-and-codes-for-administrative-geography/index.html,Thanet District Council,24/09/2013,344755,1322.05,Mears Ltd,MEA003,Director of Operational Services,Revenue,Premises Related Expenditure
http://www.ons.gov.uk/ons/guide-method/geography/products/names--codes-and-look-ups/names-and-codes-listings/names-and-codes-for-administrative-geography/index.html,Thanet District Council,24/09/2013,345644,2069.39,Mears Ltd,MEA003,Director of Operational Services,Revenue,Premises Related Expenditure
http://www.ons.gov.uk/ons/guide-method/geography/products/names--codes-and-look-ups/names-and-codes-listings/names-and-codes-for-administrative-geography/index.html,Thanet District Council,24/09/2013,345847,1493.8,Mears Ltd,MEA003,Director of Operational Services,Revenue,Premises Related Expenditure
http://www.ons.gov.uk/ons/guide-method/geography/products/names--codes-and-look-ups/names-and-codes-listings/names-and-codes-for-administrative-geography/index.html,Thanet District Council,24/09/2013,345849,1493.8,Mears Ltd,MEA003,Director of Operational Services,Revenue,Premises Related Expenditure
http://www.ons.gov.uk/ons/guide-method/geography/products/names--codes-and-look-ups/names-and-codes-listings/names-and-codes-for-administrative-geography/index.html,Thanet District Council,24/09/2013,345869,65491.27,Mears Ltd,MEA003,Director of Corporate Services and Transformation,Balance Sheet,Current Assets
http://www.ons.gov.uk/ons/guide-method/geography/products/names--codes-and-look-ups/names-and-codes-listings/names-and-codes-for-administrative-geography/index.html,Thanet District Council,24/09/2013,345870,13076.85,Mears Ltd,MEA003,Director of Corporate Services and Transformation,Balance Sheet,Current Assets
http://www.ons.gov.uk/ons/guide-method/geography/products/names--codes-and-look-ups/names-and-codes-listings/names-and-codes-for-administrative-geography/index.html,Thanet District Council,24/09/2013,345871,9946.24,Mears Ltd,MEA003,Director of Corporate Services and Transformation,Balance Sheet,Current Assets
http://www.ons.gov.uk/ons/guide-method/geography/products/names--codes-and-look-ups/names-and-codes-listings/names-and-codes-for-administrative-geography/index.html,Thanet District Council,24/09/2013,345872,3565.69,Mears Ltd,MEA003,Director of Corporate Services and Transformation,Balance Sheet,Current Assets
http://www.ons.gov.uk/ons/guide-method/geography/products/names--codes-and-look-ups/names-and-codes-listings/names-and-codes-for-administrative-geography/index.html,Thanet District Council,24/09/2013,345873,21622.14,Mears Ltd,MEA003,Director of Corporate Services and Transformation,Balance Sheet,Current Assets
http://www.ons.gov.uk/ons/guide-method/geography/products/names--codes-and-look-ups/names-and-codes-listings/names-and-codes-for-administrative-geography/index.html,Thanet District Council,24/09/2013,346067,16.3,Mears Ltd,MEA003,Director of Community Services,Revenue,Premises Related Expenditure
http://www.ons.gov.uk/ons/guide-method/geography/products/names--codes-and-look-ups/names-and-codes-listings/names-and-codes-for-administrative-geography/index.html,Thanet District Council,24/09/2013,346067,4174.53,Mears Ltd,MEA003,Director of Operational Services,Revenue,Premises Related Expenditure
http://www.ons.gov.uk/ons/guide-method/geography/products/names--codes-and-look-ups/names-and-codes-listings/names-and-codes-for-administrative-geography/index.html,Thanet District Council,24/09/2013,346031,23075,Minster Parish Council,MIN001,Director of Corporate Services and Transformation,Balance Sheet,Reserves
http://www.ons.gov.uk/ons/guide-method/geography/products/names--codes-and-look-ups/names-and-codes-listings/names-and-codes-for-administrative-geography/index.html,Thanet District Council,24/09/2013,346031,29534.61,Minster Parish Council,MIN001,Director of Operational Services,Revenue,Third Party Payments
http://www.ons.gov.uk/ons/guide-method/geography/products/names--codes-and-look-ups/names-and-codes-listings/names-and-codes-for-administrative-geography/index.html,Thanet District Council,24/09/2013,346026,500,Minster Twinning Association,MIN020,Director of Community Services,Revenue,Supplies And Services
http://www.ons.gov.uk/ons/guide-method/geography/products/names--codes-and-look-ups/names-and-codes-listings/names-and-codes-for-administrative-geography/index.html,Thanet District Council,24/09/2013,346034,2144.39,Monkton Parish Council,MON001,Director of Operational Services,Revenue,Third Party Payments
http://www.ons.gov.uk/ons/guide-method/geography/products/names--codes-and-look-ups/names-and-codes-listings/names-and-codes-for-administrative-geography/index.html,Thanet District Council,24/09/2013,346034,3629,Monkton Parish Council,MON001,Director of Corporate Services and Transformation,Balance Sheet,Reserves
http://www.ons.gov.uk/ons/guide-method/geography/products/names--codes-and-look-ups/names-and-codes-listings/names-and-codes-for-administrative-geography/index.html,Thanet District Council,24/09/2013,345671,552.65,Morgan Jones Ltd,MOR001,East Kent Shared Services,Revenue,Employees
http://www.ons.gov.uk/ons/guide-method/geography/products/names--codes-and-look-ups/names-and-codes-listings/names-and-codes-for-administrative-geography/index.html,Thanet District Council,24/09/2013,345993,552.65,Morgan Jones Ltd,MOR001,East Kent Shared Services,Revenue,Employees
http://www.ons.gov.uk/ons/guide-method/geography/products/names--codes-and-look-ups/names-and-codes-listings/names-and-codes-for-administrative-geography/index.html,Thanet District Council,24/09/2013,345692,456,Mr Philip Woolfe,WOO030,Director of Operational Services,Revenue,Supplies And Services
http://www.ons.gov.uk/ons/guide-method/geography/products/names--codes-and-look-ups/names-and-codes-listings/names-and-codes-for-administrative-geography/index.html,Thanet District Council,24/09/2013,345634,617.19,Ocs Group Uk Ltd T/A Fountains,OCS005,Director of Operational Services,Revenue,Premises Related Expenditure
http://www.ons.gov.uk/ons/guide-method/geography/products/names--codes-and-look-ups/names-and-codes-listings/names-and-codes-for-administrative-geography/index.html,Thanet District Council,24/09/2013,346003,228,Professional Conferences,PRO005,Director of Operational Services,Revenue,Supplies And Services
http://www.ons.gov.uk/ons/guide-method/geography/products/names--codes-and-look-ups/names-and-codes-listings/names-and-codes-for-administrative-geography/index.html,Thanet District Council,24/09/2013,345969,298.8,Quarterman Windscreens Llp,QUA011,Director of Operational Services,Revenue,Transport Related Expenditure
http://www.ons.gov.uk/ons/guide-method/geography/products/names--codes-and-look-ups/names-and-codes-listings/names-and-codes-for-administrative-geography/index.html,Thanet District Council,24/09/2013,345110,285,R C Brady (Uk) Ltd,BRA007,Director of Community Services,Revenue,Supplies And Services
http://www.ons.gov.uk/ons/guide-method/geography/products/names--codes-and-look-ups/names-and-codes-listings/names-and-codes-for-administrative-geography/index.html,Thanet District Council,24/09/2013,345062,374,R Cannon,CAN007,Director of Operational Services,Revenue,Premises Related Expenditure
http://www.ons.gov.uk/ons/guide-method/geography/products/names--codes-and-look-ups/names-and-codes-listings/names-and-codes-for-administrative-geography/index.html,Thanet District Council,24/09/2013,345456,1575,R Cannon,CAN007,Director of Operational Services,Revenue,Premises Related Expenditure
http://www.ons.gov.uk/ons/guide-method/geography/products/names--codes-and-look-ups/names-and-codes-listings/names-and-codes-for-administrative-geography/index.html,Thanet District Council,24/09/2013,345251,420,R J Broadley Tree Surgery,RJB002,Director of Corporate Services and Transformation,Balance Sheet,Current Assets
http://www.ons.gov.uk/ons/guide-method/geography/products/names--codes-and-look-ups/names-and-codes-listings/names-and-codes-for-administrative-geography/index.html,Thanet District Council,24/09/2013,345621,350,R J Broadley Tree Surgery,RJB002,Director of Operational Services,Revenue,Premises Related Expenditure
http://www.ons.gov.uk/ons/guide-method/geography/products/names--codes-and-look-ups/names-and-codes-listings/names-and-codes-for-administrative-geography/index.html,Thanet District Council,24/09/2013,346033,44261.12,Ramsgate Town Council,RAM031,Director of Operational Services,Revenue,Third Party Payments
http://www.ons.gov.uk/ons/guide-method/geography/products/names--codes-and-look-ups/names-and-codes-listings/names-and-codes-for-administrative-geography/index.html,Thanet District Council,24/09/2013,346033,137091.5,Ramsgate Town Council,RAM031,Director of Corporate Services and Transformation,Balance Sheet,Reserves
http://www.ons.gov.uk/ons/guide-method/geography/products/names--codes-and-look-ups/names-and-codes-listings/names-and-codes-for-administrative-geography/index.html,Thanet District Council,24/09/2013,345093,1500,Rippleffect,RIP001,Director of Community Services,Revenue,Supplies And Services
http://www.ons.gov.uk/ons/guide-method/geography/products/names--codes-and-look-ups/names-and-codes-listings/names-and-codes-for-administrative-geography/index.html,Thanet District Council,24/09/2013,345690,786,Riverside Truck Rental Limited,RIV005,Director of Operational Services,Revenue,Transport Related Expenditure
http://www.ons.gov.uk/ons/guide-method/geography/products/names--codes-and-look-ups/names-and-codes-listings/names-and-codes-for-administrative-geography/index.html,Thanet District Council,24/09/2013,345691,786,Riverside Truck Rental Limited,RIV005,Director of Operational Services,Revenue,Transport Related Expenditure
http://www.ons.gov.uk/ons/guide-method/geography/products/names--codes-and-look-ups/names-and-codes-listings/names-and-codes-for-administrative-geography/index.html,Thanet District Council,24/09/2013,345252,363.52,Royal Mail,ROY004,Director of Corporate Services and Transformation,Revenue,Supplies And Services
http://www.ons.gov.uk/ons/guide-method/geography/products/names--codes-and-look-ups/names-and-codes-listings/names-and-codes-for-administrative-geography/index.html,Thanet District Council,24/09/2013,345912,2296.35,Royal Mail,ROY004,Director of Corporate Services and Transformation,Revenue,Supplies And Services
http://www.ons.gov.uk/ons/guide-method/geography/products/names--codes-and-look-ups/names-and-codes-listings/names-and-codes-for-administrative-geography/index.html,Thanet District Council,24/09/2013,345659,343.27,Rundle & Co Limited,RUN004,East Kent Shared Services,Revenue,Supplies And Services
http://www.ons.gov.uk/ons/guide-method/geography/products/names--codes-and-look-ups/names-and-codes-listings/names-and-codes-for-administrative-geography/index.html,Thanet District Council,24/09/2013,345632,940.5,Sonovate Limited,SON001,Director of Corporate Services and Transformation,Revenue,Supplies And Services
http://www.ons.gov.uk/ons/guide-method/geography/products/names--codes-and-look-ups/names-and-codes-listings/names-and-codes-for-administrative-geography/index.html,Thanet District Council,24/09/2013,345508,269.46,Southern Electric,SEL007,Director of Operational Services,Revenue,Premises Related Expenditure
http://www.ons.gov.uk/ons/guide-method/geography/products/names--codes-and-look-ups/names-and-codes-listings/names-and-codes-for-administrative-geography/index.html,Thanet District Council,24/09/2013,345514,2162.36,Southern Electric,SEL007,Director of Community Services,Revenue,Premises Related Expenditure
http://www.ons.gov.uk/ons/guide-method/geography/products/names--codes-and-look-ups/names-and-codes-listings/names-and-codes-for-administrative-geography/index.html,Thanet District Council,24/09/2013,345528,2382.02,Southern Electric,SEL007,Director of Community Services,Revenue,Premises Related Expenditure
http://www.ons.gov.uk/ons/guide-method/geography/products/names--codes-and-look-ups/names-and-codes-listings/names-and-codes-for-administrative-geography/index.html,Thanet District Council,24/09/2013,345559,548.81,Southern Electric,SEL007,Director of Operational Services,Revenue,Premises Related Expenditure
http://www.ons.gov.uk/ons/guide-method/geography/products/names--codes-and-look-ups/names-and-codes-listings/names-and-codes-for-administrative-geography/index.html,Thanet District Council,24/09/2013,345887,460,Southern Electric,SEL007,Director of Community Services,Revenue,Premises Related Expenditure
http://www.ons.gov.uk/ons/guide-method/geography/products/names--codes-and-look-ups/names-and-codes-listings/names-and-codes-for-administrative-geography/index.html,Thanet District Council,24/09/2013,345937,655.34,Southern Electric,SEL007,Director of Operational Services,Revenue,Premises Related Expenditure
http://www.ons.gov.uk/ons/guide-method/geography/products/names--codes-and-look-ups/names-and-codes-listings/names-and-codes-for-administrative-geography/index.html,Thanet District Council,24/09/2013,345939,606.07,Southern Electric,SEL007,Director of Operational Services,Revenue,Premises Related Expenditure
http://www.ons.gov.uk/ons/guide-method/geography/products/names--codes-and-look-ups/names-and-codes-listings/names-and-codes-for-administrative-geography/index.html,Thanet District Council,24/09/2013,345945,1166.17,Southern Electric,SEL007,Director of Operational Services,Revenue,Premises Related Expenditure
http://www.ons.gov.uk/ons/guide-method/geography/products/names--codes-and-look-ups/names-and-codes-listings/names-and-codes-for-administrative-geography/index.html,Thanet District Council,24/09/2013,345973,274.22,Southern Electric,SEL007,Director of Operational Services,Revenue,Premises Related Expenditure
http://www.ons.gov.uk/ons/guide-method/geography/products/names--codes-and-look-ups/names-and-codes-listings/names-and-codes-for-administrative-geography/index.html,Thanet District Council,24/09/2013,345974,2685.15,Southern Electric,SEL007,Director of Operational Services,Revenue,Premises Related Expenditure
http://www.ons.gov.uk/ons/guide-method/geography/products/names--codes-and-look-ups/names-and-codes-listings/names-and-codes-for-administrative-geography/index.html,Thanet District Council,24/09/2013,345488,904.61,Southern Water,SWA001,Director of Operational Services,Revenue,Premises Related Expenditure
http://www.ons.gov.uk/ons/guide-method/geography/products/names--codes-and-look-ups/names-and-codes-listings/names-and-codes-for-administrative-geography/index.html,Thanet District Council,24/09/2013,345536,706.72,Southern Water,SWA001,Director of Operational Services,Revenue,Premises Related Expenditure
http://www.ons.gov.uk/ons/guide-method/geography/products/names--codes-and-look-ups/names-and-codes-listings/names-and-codes-for-administrative-geography/index.html,Thanet District Council,24/09/2013,345538,304.56,Southern Water,SWA001,Director of Operational Services,Revenue,Premises Related Expenditure
http://www.ons.gov.uk/ons/guide-method/geography/products/names--codes-and-look-ups/names-and-codes-listings/names-and-codes-for-administrative-geography/index.html,Thanet District Council,24/09/2013,345540,1097.36,Southern Water,SWA001,Director of Operational Services,Revenue,Premises Related Expenditure
http://www.ons.gov.uk/ons/guide-method/geography/products/names--codes-and-look-ups/names-and-codes-listings/names-and-codes-for-administrative-geography/index.html,Thanet District Council,24/09/2013,345541,3789.24,Southern Water,SWA001,Director of Operational Services,Revenue,Premises Related Expenditure
http://www.ons.gov.uk/ons/guide-method/geography/products/names--codes-and-look-ups/names-and-codes-listings/names-and-codes-for-administrative-geography/index.html,Thanet District Council,24/09/2013,345543,502.07,Southern Water,SWA001,Director of Operational Services,Revenue,Premises Related Expenditure
http://www.ons.gov.uk/ons/guide-method/geography/products/names--codes-and-look-ups/names-and-codes-listings/names-and-codes-for-administrative-geography/index.html,Thanet District Council,24/09/2013,345884,2028.07,Southern Water,SWA001,Director of Operational Services,Revenue,Premises Related Expenditure
http://www.ons.gov.uk/ons/guide-method/geography/products/names--codes-and-look-ups/names-and-codes-listings/names-and-codes-for-administrative-geography/index.html,Thanet District Council,24/09/2013,345885,550.24,Southern Water,SWA001,Director of Operational Services,Revenue,Premises Related Expenditure
http://www.ons.gov.uk/ons/guide-method/geography/products/names--codes-and-look-ups/names-and-codes-listings/names-and-codes-for-administrative-geography/index.html,Thanet District Council,24/09/2013,345886,1895.65,Southern Water,SWA001,Director of Operational Services,Revenue,Premises Related Expenditure
http://www.ons.gov.uk/ons/guide-method/geography/products/names--codes-and-look-ups/names-and-codes-listings/names-and-codes-for-administrative-geography/index.html,Thanet District Council,24/09/2013,345824,843.21,Sparshatts Of Kent Ltd,SPA008,Director of Operational Services,Revenue,Transport Related Expenditure
http://www.ons.gov.uk/ons/guide-method/geography/products/names--codes-and-look-ups/names-and-codes-listings/names-and-codes-for-administrative-geography/index.html,Thanet District Council,24/09/2013,345825,421.61,Sparshatts Of Kent Ltd,SPA008,Director of Operational Services,Revenue,Transport Related Expenditure
http://www.ons.gov.uk/ons/guide-method/geography/products/names--codes-and-look-ups/names-and-codes-listings/names-and-codes-for-administrative-geography/index.html,Thanet District Council,24/09/2013,346032,740,St Nicholas At Wade & Sarre P Counc,STN001,Director of Operational Services,Revenue,Supplies And Services
http://www.ons.gov.uk/ons/guide-method/geography/products/names--codes-and-look-ups/names-and-codes-listings/names-and-codes-for-administrative-geography/index.html,Thanet District Council,24/09/2013,346032,5990,St Nicholas At Wade & Sarre P Counc,STN001,Director of Corporate Services and Transformation,Balance Sheet,Reserves
http://www.ons.gov.uk/ons/guide-method/geography/products/names--codes-and-look-ups/names-and-codes-listings/names-and-codes-for-administrative-geography/index.html,Thanet District Council,24/09/2013,346032,8156.45,St Nicholas At Wade & Sarre P Counc,STN001,Director of Operational Services,Revenue,Third Party Payments
http://www.ons.gov.uk/ons/guide-method/geography/products/names--codes-and-look-ups/names-and-codes-listings/names-and-codes-for-administrative-geography/index.html,Thanet District Council,24/09/2013,345107,12020.23,Stewart Anthony Ltd,ANT001,Director of Corporate Services and Transformation,Balance Sheet,Current Assets
http://www.ons.gov.uk/ons/guide-method/geography/products/names--codes-and-look-ups/names-and-codes-listings/names-and-codes-for-administrative-geography/index.html,Thanet District Council,24/09/2013,345215,13000,The Pipeline,PIP002,Director of Corporate Services and Transformation,Balance Sheet,Current Assets
http://www.ons.gov.uk/ons/guide-method/geography/products/names--codes-and-look-ups/names-and-codes-listings/names-and-codes-for-administrative-geography/index.html,Thanet District Council,24/09/2013,346064,300,The Racing Greyhound Pub,RAC005,Director of Corporate Services and Transformation,Revenue,Premises Related Expenditure
http://www.ons.gov.uk/ons/guide-method/geography/products/names--codes-and-look-ups/names-and-codes-listings/names-and-codes-for-administrative-geography/index.html,Thanet District Council,24/09/2013,345821,400,Think Publishing Limited,THI011,Director of Operational Services,Revenue,Supplies And Services
http://www.ons.gov.uk/ons/guide-method/geography/products/names--codes-and-look-ups/names-and-codes-listings/names-and-codes-for-administrative-geography/index.html,Thanet District Council,24/09/2013,346045,1500,Thomson Snell & Passmore,THO016,Director of Operational Services,Revenue,Supplies And Services
http://www.ons.gov.uk/ons/guide-method/geography/products/names--codes-and-look-ups/names-and-codes-listings/names-and-codes-for-administrative-geography/index.html,Thanet District Council,24/09/2013,346028,5592,Trueden Disability Care Ltd,TRU011,Director of Corporate Services and Transformation,Balance Sheet,Long Term Assets
http://www.ons.gov.uk/ons/guide-method/geography/products/names--codes-and-look-ups/names-and-codes-listings/names-and-codes-for-administrative-geography/index.html,Thanet District Council,24/09/2013,346030,6082,Trueden Disability Care Ltd,TRU011,Director of Corporate Services and Transformation,Balance Sheet,Long Term Assets
http://www.ons.gov.uk/ons/guide-method/geography/products/names--codes-and-look-ups/names-and-codes-listings/names-and-codes-for-administrative-geography/index.html,Thanet District Council,24/09/2013,345882,909,Uk Power Networks (Operations) Ltd,UKP001,Director of Operational Services,Revenue,Supplies And Services
http://www.ons.gov.uk/ons/guide-method/geography/products/names--codes-and-look-ups/names-and-codes-listings/names-and-codes-for-administrative-geography/index.html,Thanet District Council,24/09/2013,345684,8400,Umbraco,UMB001,East Kent Shared Services,Revenue,Supplies And Services
http://www.ons.gov.uk/ons/guide-method/geography/products/names--codes-and-look-ups/names-and-codes-listings/names-and-codes-for-administrative-geography/index.html,Thanet District Council,24/09/2013,345533,1350,Vector Resourcing Ltd,VEC001,East Kent Shared Services,Revenue,Employees
http://www.ons.gov.uk/ons/guide-method/geography/products/names--codes-and-look-ups/names-and-codes-listings/names-and-codes-for-administrative-geography/index.html,Thanet District Council,24/09/2013,345441,270.88,Veolia Es (Uk) Ltd,VEO001,Director of Operational Services,Revenue,Premises Related Expenditure
http://www.ons.gov.uk/ons/guide-method/geography/products/names--codes-and-look-ups/names-and-codes-listings/names-and-codes-for-administrative-geography/index.html,Thanet District Council,24/09/2013,345443,67.48,Veolia Es (Uk) Ltd,VEO001,Director of Corporate Services and Transformation,Balance Sheet,Current Assets
http://www.ons.gov.uk/ons/guide-method/geography/products/names--codes-and-look-ups/names-and-codes-listings/names-and-codes-for-administrative-geography/index.html,Thanet District Council,24/09/2013,345443,2392.87,Veolia Es (Uk) Ltd,VEO001,Director of Operational Services,Revenue,Premises Related Expenditure
http://www.ons.gov.uk/ons/guide-method/geography/products/names--codes-and-look-ups/names-and-codes-listings/names-and-codes-for-administrative-geography/index.html,Thanet District Council,24/09/2013,346059,266.22,Viridor Waste Management Ltd,VIR003,Director of Operational Services,Revenue,Premises Related Expenditure
http://www.ons.gov.uk/ons/guide-method/geography/products/names--codes-and-look-ups/names-and-codes-listings/names-and-codes-for-administrative-geography/index.html,Thanet District Council,24/09/2013,345851,420,W Brazil & Bros,BRA001,Director of Corporate Services and Transformation,Balance Sheet,Current Assets
http://www.ons.gov.uk/ons/guide-method/geography/products/names--codes-and-look-ups/names-and-codes-listings/names-and-codes-for-administrative-geography/index.html,Thanet District Council,24/09/2013,344883,5202.4,Waste Consulting Llp,WAS005,Director of Operational Services,Revenue,Supplies And Services
http://www.ons.gov.uk/ons/guide-method/geography/products/names--codes-and-look-ups/names-and-codes-listings/names-and-codes-for-administrative-geography/index.html,Thanet District Council,24/09/2013,345532,18480,Weir & Carmichael Limited,WEI004,Director of Corporate Services and Transformation,Balance Sheet,Long Term Assets
http://www.ons.gov.uk/ons/guide-method/geography/products/names--codes-and-look-ups/names-and-codes-listings/names-and-codes-for-administrative-geography/index.html,Thanet District Council,24/09/2013,345813,1495.5,Westbury Industrial Supplies Ltd,WES042,Director of Operational Services,Revenue,Supplies And Services
http://www.ons.gov.uk/ons/guide-method/geography/products/names--codes-and-look-ups/names-and-codes-listings/names-and-codes-for-administrative-geography/index.html,Thanet District Council,24/09/2013,345628,3676.23,Xma Ltd,XMA001,East Kent Shared Services,Revenue,Supplies And Services
http://www.ons.gov.uk/ons/guide-method/geography/products/names--codes-and-look-ups/names-and-codes-listings/names-and-codes-for-administrative-geography/index.html,Thanet District Council,24/09/2013,345694,408.47,Xma Ltd,XMA001,East Kent Shared Services,Revenue,Supplies And Services
http://www.ons.gov.uk/ons/guide-method/geography/products/names--codes-and-look-ups/names-and-codes-listings/names-and-codes-for-administrative-geography/index.html,Thanet District Council,24/09/2013,344039,270603.33,Your Leisure Kent Limited,YOU016,Director of Corporate Services and Transformation,Balance Sheet,Current Assets
http://www.ons.gov.uk/ons/guide-method/geography/products/names--codes-and-look-ups/names-and-codes-listings/names-and-codes-for-administrative-geography/index.html,Thanet District Council,24/09/2013,345425,2500,Your Leisure Kent Limited,YOU016,Director of Community Services,Revenue,Supplies And Services
http://www.ons.gov.uk/ons/guide-method/geography/products/names--codes-and-look-ups/names-and-codes-listings/names-and-codes-for-administrative-geography/index.html,Thanet District Council,25/09/2013,346280,416.3,Co-Operative Bank Paypoint,COO018,Director of Community Services,Revenue,Supplies And Services
http://www.ons.gov.uk/ons/guide-method/geography/products/names--codes-and-look-ups/names-and-codes-listings/names-and-codes-for-administrative-geography/index.html,Thanet District Council,25/09/2013,346280,1248.9,Co-Operative Bank Paypoint,COO018,Director of Corporate Services and Transformation,Revenue,Supplies And Services
http://www.ons.gov.uk/ons/guide-method/geography/products/names--codes-and-look-ups/names-and-codes-listings/names-and-codes-for-administrative-geography/index.html,Thanet District Council,25/09/2013,346255,3,H M Land Registry,HML002,East Kent Shared Services,Revenue,Supplies And Services
http://www.ons.gov.uk/ons/guide-method/geography/products/names--codes-and-look-ups/names-and-codes-listings/names-and-codes-for-administrative-geography/index.html,Thanet District Council,25/09/2013,346255,4,H M Land Registry,HML002,Director of Operational Services,Revenue,Supplies And Services
http://www.ons.gov.uk/ons/guide-method/geography/products/names--codes-and-look-ups/names-and-codes-listings/names-and-codes-for-administrative-geography/index.html,Thanet District Council,25/09/2013,346255,9,H M Land Registry,HML002,Director of Corporate Services and Transformation,Revenue,Supplies And Services
http://www.ons.gov.uk/ons/guide-method/geography/products/names--codes-and-look-ups/names-and-codes-listings/names-and-codes-for-administrative-geography/index.html,Thanet District Council,25/09/2013,346255,280,H M Land Registry,HML002,Director of Community Services,Revenue,Supplies And Services
http://www.ons.gov.uk/ons/guide-method/geography/products/names--codes-and-look-ups/names-and-codes-listings/names-and-codes-for-administrative-geography/index.html,Thanet District Council,25/09/2013,346269,85,Nat West Bank,NWE001,East Kent Shared Services,Revenue,Supplies And Services
http://www.ons.gov.uk/ons/guide-method/geography/products/names--codes-and-look-ups/names-and-codes-listings/names-and-codes-for-administrative-geography/index.html,Thanet District Council,25/09/2013,346269,200,Nat West Bank,NWE001,Director of Community Services,Revenue,Supplies And Services
http://www.ons.gov.uk/ons/guide-method/geography/products/names--codes-and-look-ups/names-and-codes-listings/names-and-codes-for-administrative-geography/index.html,Thanet District Council,25/09/2013,346271,3532.11,Nat West Bank,NWE001,Director of Corporate Services and Transformation,Revenue,Supplies And Services
http://www.ons.gov.uk/ons/guide-method/geography/products/names--codes-and-look-ups/names-and-codes-listings/names-and-codes-for-administrative-geography/index.html,Thanet District Council,25/09/2013,346272,915.75,Nat West Bank,NWE001,East Kent Shared Services,Revenue,Supplies And Services
http://www.ons.gov.uk/ons/guide-method/geography/products/names--codes-and-look-ups/names-and-codes-listings/names-and-codes-for-administrative-geography/index.html,Thanet District Council,25/09/2013,346279,260.41,Nat West Bank,NWE001,Director of Corporate Services and Transformation,Revenue,Supplies And Services
http://www.ons.gov.uk/ons/guide-method/geography/products/names--codes-and-look-ups/names-and-codes-listings/names-and-codes-for-administrative-geography/index.html,Thanet District Council,25/09/2013,346262,63554.36,Public Works Loan Board,PWL001,Director of Corporate Services and Transformation,Balance Sheet,Current Assets
http://www.ons.gov.uk/ons/guide-method/geography/products/names--codes-and-look-ups/names-and-codes-listings/names-and-codes-for-administrative-geography/index.html,Thanet District Council,25/09/2013,346283,958.01,Santander,SAN017,Director of Corporate Services and Transformation,Revenue,Supplies And Services
http://www.ons.gov.uk/ons/guide-method/geography/products/names--codes-and-look-ups/names-and-codes-listings/names-and-codes-for-administrative-geography/index.html,Thanet District Council,25/09/2013,346285,679.89,Santander,SAN017,Director of Community Services,Revenue,Supplies And Services
http://www.ons.gov.uk/ons/guide-method/geography/products/names--codes-and-look-ups/names-and-codes-listings/names-and-codes-for-administrative-geography/index.html,Thanet District Council,25/09/2013,346285,2039.67,Santander,SAN017,Director of Corporate Services and Transformation,Revenue,Supplies And Services
http://www.ons.gov.uk/ons/guide-method/geography/products/names--codes-and-look-ups/names-and-codes-listings/names-and-codes-for-administrative-geography/index.html,Thanet District Council,25/09/2013,346270,2325952,Secretary Of State,SEC003,Director of Corporate Services and Transformation,Balance Sheet,Current Liabilities
http://www.ons.gov.uk/ons/guide-method/geography/products/names--codes-and-look-ups/names-and-codes-listings/names-and-codes-for-administrative-geography/index.html,Thanet District Council,25/09/2013,346273,685160,Secretary Of State,SEC003,Director of Corporate Services and Transformation,Balance Sheet,Current Liabilities
http://www.ons.gov.uk/ons/guide-method/geography/products/names--codes-and-look-ups/names-and-codes-listings/names-and-codes-for-administrative-geography/index.html,Thanet District Council,25/09/2013,346274,314.3,Worldpay Ltd,WOR008,Director of Corporate Services and Transformation,Revenue,Supplies And Services
http://www.ons.gov.uk/ons/guide-method/geography/products/names--codes-and-look-ups/names-and-codes-listings/names-and-codes-for-administrative-geography/index.html,Thanet District Council,25/09/2013,346277,1123.24,Worldpay Ltd,WOR008,Director of Corporate Services and Transformation,Revenue,Supplies And Services
http://www.ons.gov.uk/ons/guide-method/geography/products/names--codes-and-look-ups/names-and-codes-listings/names-and-codes-for-administrative-geography/index.html,Thanet District Council,25/09/2013,346281,740.34,Worldpay Ltd,WOR008,Director of Operational Services,Revenue,Supplies And Services
http://www.ons.gov.uk/ons/guide-method/geography/products/names--codes-and-look-ups/names-and-codes-listings/names-and-codes-for-administrative-geography/index.html,Thanet District Council,25/09/2013,346290,1403.66,Worldpay Ltd,WOR008,Director of Corporate Services and Transformation,Revenue,Supplies And Services
http://www.ons.gov.uk/ons/guide-method/geography/products/names--codes-and-look-ups/names-and-codes-listings/names-and-codes-for-administrative-geography/index.html,Thanet District Council,26/09/2013,PC4437,499.2,1st Choice Minimix,N/A,Director of Operational Services,Revenue,Premises Related Expenditure
http://www.ons.gov.uk/ons/guide-method/geography/products/names--codes-and-look-ups/names-and-codes-listings/names-and-codes-for-administrative-geography/index.html,Thanet District Council,26/09/2013,PC4425,296.68,BPP Prf Education,N/A,East Kent Shared Services,Revenue,Employees
http://www.ons.gov.uk/ons/guide-method/geography/products/names--codes-and-look-ups/names-and-codes-listings/names-and-codes-for-administrative-geography/index.html,Thanet District Council,26/09/2013,PC4409,474,Brett Aggregates Ltd,N/A,Director of Operational Services,Revenue,Premises Related Expenditure
http://www.ons.gov.uk/ons/guide-method/geography/products/names--codes-and-look-ups/names-and-codes-listings/names-and-codes-for-administrative-geography/index.html,Thanet District Council,26/09/2013,PC4419,474,Brett Aggregates Ltd,N/A,Director of Operational Services,Revenue,Premises Related Expenditure
http://www.ons.gov.uk/ons/guide-method/geography/products/names--codes-and-look-ups/names-and-codes-listings/names-and-codes-for-administrative-geography/index.html,Thanet District Council,26/09/2013,PC4246,400,County Court Basildon,N/A,East Kent Shared Services,Revenue,Supplies And Services
http://www.ons.gov.uk/ons/guide-method/geography/products/names--codes-and-look-ups/names-and-codes-listings/names-and-codes-for-administrative-geography/index.html,Thanet District Council,26/09/2013,PC4430,450,FGS Agri Ltd,N/A,Director of Operational Services,Revenue,Premises Related Expenditure
http://www.ons.gov.uk/ons/guide-method/geography/products/names--codes-and-look-ups/names-and-codes-listings/names-and-codes-for-administrative-geography/index.html,Thanet District Council,26/09/2013,PC4347,1125,H M Courts Service,N/A,East Kent Shared Services,Revenue,Supplies And Services
http://www.ons.gov.uk/ons/guide-method/geography/products/names--codes-and-look-ups/names-and-codes-listings/names-and-codes-for-administrative-geography/index.html,Thanet District Council,26/09/2013,PC4348,828,H M Courts Service,N/A,East Kent Shared Services,Revenue,Supplies And Services
http://www.ons.gov.uk/ons/guide-method/geography/products/names--codes-and-look-ups/names-and-codes-listings/names-and-codes-for-administrative-geography/index.html,Thanet District Council,26/09/2013,PC4349,1803,H M Courts Service,N/A,East Kent Shared Services,Revenue,Supplies And Services
http://www.ons.gov.uk/ons/guide-method/geography/products/names--codes-and-look-ups/names-and-codes-listings/names-and-codes-for-administrative-geography/index.html,Thanet District Council,26/09/2013,PC4505,300,H M Courts Service,N/A,East Kent Shared Services,Revenue,Supplies And Services
http://www.ons.gov.uk/ons/guide-method/geography/products/names--codes-and-look-ups/names-and-codes-listings/names-and-codes-for-administrative-geography/index.html,Thanet District Council,26/09/2013,PC4486,850,Hartsdown Leisure Ltd,N/A,Director of Corporate Services and Transformation,Balance Sheet,Long Term Assets
http://www.ons.gov.uk/ons/guide-method/geography/products/names--codes-and-look-ups/names-and-codes-listings/names-and-codes-for-administrative-geography/index.html,Thanet District Council,26/09/2013,PC4488,162.2,Holiday Inn Express,N/A,Director of Operational Services,Revenue,Supplies And Services
http://www.ons.gov.uk/ons/guide-method/geography/products/names--codes-and-look-ups/names-and-codes-listings/names-and-codes-for-administrative-geography/index.html,Thanet District Council,26/09/2013,PC4489,162.19,Holiday Inn Express,N/A,Director of Operational Services,Revenue,Supplies And Services
http://www.ons.gov.uk/ons/guide-method/geography/products/names--codes-and-look-ups/names-and-codes-listings/names-and-codes-for-administrative-geography/index.html,Thanet District Council,26/09/2013,PC4467,427.5,Rapidracking.com,N/A,Director of Operational Services,Revenue,Supplies And Services
http://www.ons.gov.uk/ons/guide-method/geography/products/names--codes-and-look-ups/names-and-codes-listings/names-and-codes-for-administrative-geography/index.html,Thanet District Council,26/09/2013,PC4500,251,Royal Mail,N/A,Director of Community Services,Revenue,Supplies And Services
http://www.ons.gov.uk/ons/guide-method/geography/products/names--codes-and-look-ups/names-and-codes-listings/names-and-codes-for-administrative-geography/index.html,Thanet District Council,26/09/2013,PC4362,335.01,The Big Blue Hotel,N/A,Director of Community Services,Revenue,Supplies And Services
http://www.ons.gov.uk/ons/guide-method/geography/products/names--codes-and-look-ups/names-and-codes-listings/names-and-codes-for-administrative-geography/index.html,Thanet District Council,26/09/2013,PC4421,241.27,Tradingdepot.co.uk,N/A,Director of Corporate Services and Transformation,Balance Sheet,Long Term Assets
http://www.ons.gov.uk/ons/guide-method/geography/products/names--codes-and-look-ups/names-and-codes-listings/names-and-codes-for-administrative-geography/index.html,Thanet District Council,26/09/2013,PC4373,48.6,Virgin Trains,N/A,Director of Corporate Services and Transformation,Revenue,Transport Related Expenditure
http://www.ons.gov.uk/ons/guide-method/geography/products/names--codes-and-look-ups/names-and-codes-listings/names-and-codes-for-administrative-geography/index.html,Thanet District Council,26/09/2013,PC4734,324.9,Virgin Trains,N/A,Director of Community Services,Revenue,Transport Related Expenditure
http://www.ons.gov.uk/ons/guide-method/geography/products/names--codes-and-look-ups/names-and-codes-listings/names-and-codes-for-administrative-geography/index.html,Thanet District Council,27/09/2013,346455,440,Aston Walker,AST008,Director of Corporate Services and Transformation,Revenue,Supplies And Services
http://www.ons.gov.uk/ons/guide-method/geography/products/names--codes-and-look-ups/names-and-codes-listings/names-and-codes-for-administrative-geography/index.html,Thanet District Council,27/09/2013,346456,560,Aston Walker,AST008,Director of Corporate Services and Transformation,Revenue,Supplies And Services
http://www.ons.gov.uk/ons/guide-method/geography/products/names--codes-and-look-ups/names-and-codes-listings/names-and-codes-for-administrative-geography/index.html,Thanet District Council,27/09/2013,346412,350,Boys & Maughan,BOY001,Director of Operational Services,Revenue,Supplies And Services
http://www.ons.gov.uk/ons/guide-method/geography/products/names--codes-and-look-ups/names-and-codes-listings/names-and-codes-for-administrative-geography/index.html,Thanet District Council,27/09/2013,346373,278.96,Channel Commercials Plc,CCO001,Director of Operational Services,Revenue,Transport Related Expenditure
http://www.ons.gov.uk/ons/guide-method/geography/products/names--codes-and-look-ups/names-and-codes-listings/names-and-codes-for-administrative-geography/index.html,Thanet District Council,27/09/2013,345909,446.18,Direct Bearings & Power Trans Ltd,DIR001,Director of Operational Services,Revenue,Supplies And Services
http://www.ons.gov.uk/ons/guide-method/geography/products/names--codes-and-look-ups/names-and-codes-listings/names-and-codes-for-administrative-geography/index.html,Thanet District Council,27/09/2013,346414,2223,Dmh Stallard Llp,DMH001,Director of Corporate Services and Transformation,Revenue,Supplies And Services
http://www.ons.gov.uk/ons/guide-method/geography/products/names--codes-and-look-ups/names-and-codes-listings/names-and-codes-for-administrative-geography/index.html,Thanet District Council,27/09/2013,346411,370,Dover Counselling Centre,DOV014,East Kent Shared Services,Revenue,Employees
http://www.ons.gov.uk/ons/guide-method/geography/products/names--codes-and-look-ups/names-and-codes-listings/names-and-codes-for-administrative-geography/index.html,Thanet District Council,27/09/2013,345845,3580.18,Fuel Oils Kent,FUE001,Director of Operational Services,Revenue,Supplies And Services
http://www.ons.gov.uk/ons/guide-method/geography/products/names--codes-and-look-ups/names-and-codes-listings/names-and-codes-for-administrative-geography/index.html,Thanet District Council,27/09/2013,346013,608,Gb Sport & Leisure Uk Ltd,GBS002,Director of Operational Services,Revenue,Premises Related Expenditure
http://www.ons.gov.uk/ons/guide-method/geography/products/names--codes-and-look-ups/names-and-codes-listings/names-and-codes-for-administrative-geography/index.html,Thanet District Council,27/09/2013,346359,1365.94,Hr Go Recruitment Ltd,HRG002,Director of Operational Services,Revenue,Employees
http://www.ons.gov.uk/ons/guide-method/geography/products/names--codes-and-look-ups/names-and-codes-listings/names-and-codes-for-administrative-geography/index.html,Thanet District Council,27/09/2013,346360,585.09,Hr Go Recruitment Ltd,HRG002,Director of Operational Services,Revenue,Employees
http://www.ons.gov.uk/ons/guide-method/geography/products/names--codes-and-look-ups/names-and-codes-listings/names-and-codes-for-administrative-geography/index.html,Thanet District Council,27/09/2013,346361,7008.95,Hr Go Recruitment Ltd,HRG002,Director of Operational Services,Revenue,Employees
http://www.ons.gov.uk/ons/guide-method/geography/products/names--codes-and-look-ups/names-and-codes-listings/names-and-codes-for-administrative-geography/index.html,Thanet District Council,27/09/2013,345874,2021.78,Kent County Council (Kcs),KCC003,Director of Operational Services,Revenue,Premises Related Expenditure
http://www.ons.gov.uk/ons/guide-method/geography/products/names--codes-and-look-ups/names-and-codes-listings/names-and-codes-for-administrative-geography/index.html,Thanet District Council,27/09/2013,345880,763.5,Landscape Supply Company,LAN014,Director of Operational Services,Revenue,Supplies And Services
http://www.ons.gov.uk/ons/guide-method/geography/products/names--codes-and-look-ups/names-and-codes-listings/names-and-codes-for-administrative-geography/index.html,Thanet District Council,27/09/2013,346374,2068.24,Sellick Partnership Group Ltd,SEL011,Director of Corporate Services and Transformation,Revenue,Supplies And Services
http://www.ons.gov.uk/ons/guide-method/geography/products/names--codes-and-look-ups/names-and-codes-listings/names-and-codes-for-administrative-geography/index.html,Thanet District Council,27/09/2013,346375,1084.03,Sellick Partnership Group Ltd,SEL011,Director of Corporate Services and Transformation,Revenue,Supplies And Services
http://www.ons.gov.uk/ons/guide-method/geography/products/names--codes-and-look-ups/names-and-codes-listings/names-and-codes-for-administrative-geography/index.html,Thanet District Council,27/09/2013,345916,3900,Shoreline Surveys Limited,SHO001,Director of Operational Services,Revenue,Premises Related Expenditure
http://www.ons.gov.uk/ons/guide-method/geography/products/names--codes-and-look-ups/names-and-codes-listings/names-and-codes-for-administrative-geography/index.html,Thanet District Council,27/09/2013,346014,630,Streetmaster (S.Wales) Limited,STR001,Director of Operational Services,Revenue,Supplies And Services
http://www.ons.gov.uk/ons/guide-method/geography/products/names--codes-and-look-ups/names-and-codes-listings/names-and-codes-for-administrative-geography/index.html,Thanet District Council,27/09/2013,345934,1370.83,The Glenwood Hotel,GLE007,Director of Community Services,Revenue,Supplies And Services
http://www.ons.gov.uk/ons/guide-method/geography/products/names--codes-and-look-ups/names-and-codes-listings/names-and-codes-for-administrative-geography/index.html,Thanet District Council,27/09/2013,345842,213.88,W G Burbridge,BUR016,Director of Operational Services,Revenue,Supplies And Services
http://www.ons.gov.uk/ons/guide-method/geography/products/names--codes-and-look-ups/names-and-codes-listings/names-and-codes-for-administrative-geography/index.html,Thanet District Council,27/09/2013,345843,211.27,W G Burbridge,BUR016,Director of Operational Services,Revenue,Premises Related Expenditure
http://www.ons.gov.uk/ons/guide-method/geography/products/names--codes-and-look-ups/names-and-codes-listings/names-and-codes-for-administrative-geography/index.html,Thanet District Council,30/09/2013,346463,440,2433 (Ramsgate) Squadron Atc,243001,Director of Community Services,Revenue,Supplies And Services
http://www.ons.gov.uk/ons/guide-method/geography/products/names--codes-and-look-ups/names-and-codes-listings/names-and-codes-for-administrative-geography/index.html,Thanet District Council,30/09/2013,346002,494.7,Adecco Uk Ltd,ADE005,Director of Corporate Services and Transformation,Revenue,Supplies And Services
http://www.ons.gov.uk/ons/guide-method/geography/products/names--codes-and-look-ups/names-and-codes-listings/names-and-codes-for-administrative-geography/index.html,Thanet District Council,30/09/2013,346248,486.46,Adecco Uk Ltd,ADE005,Director of Corporate Services and Transformation,Revenue,Supplies And Services
http://www.ons.gov.uk/ons/guide-method/geography/products/names--codes-and-look-ups/names-and-codes-listings/names-and-codes-for-administrative-geography/index.html,Thanet District Council,30/09/2013,345485,796,Ashdown Supplies,ASH009,Director of Operational Services,Revenue,Supplies And Services
http://www.ons.gov.uk/ons/guide-method/geography/products/names--codes-and-look-ups/names-and-codes-listings/names-and-codes-for-administrative-geography/index.html,Thanet District Council,30/09/2013,346570,4557.68,Better Beaches Ltd,BET009,Director of Operational Services,Revenue,Supplies And Services
http://www.ons.gov.uk/ons/guide-method/geography/products/names--codes-and-look-ups/names-and-codes-listings/names-and-codes-for-administrative-geography/index.html,Thanet District Council,30/09/2013,346460,5875,Bramling Construction Ltd,BRA020,Director of Corporate Services and Transformation,Balance Sheet,Long Term Assets
http://www.ons.gov.uk/ons/guide-method/geography/products/names--codes-and-look-ups/names-and-codes-listings/names-and-codes-for-administrative-geography/index.html,Thanet District Council,30/09/2013,346560,4470,Bramling Construction Ltd,BRA020,Director of Corporate Services and Transformation,Balance Sheet,Long Term Assets
http://www.ons.gov.uk/ons/guide-method/geography/products/names--codes-and-look-ups/names-and-codes-listings/names-and-codes-for-administrative-geography/index.html,Thanet District Council,30/09/2013,346293,4070,Civica Uk Ltd,CIV003,East Kent Shared Services,Revenue,Supplies And Services
http://www.ons.gov.uk/ons/guide-method/geography/products/names--codes-and-look-ups/names-and-codes-listings/names-and-codes-for-administrative-geography/index.html,Thanet District Council,30/09/2013,346295,4070,Civica Uk Ltd,CIV003,East Kent Shared Services,Revenue,Supplies And Services
http://www.ons.gov.uk/ons/guide-method/geography/products/names--codes-and-look-ups/names-and-codes-listings/names-and-codes-for-administrative-geography/index.html,Thanet District Council,30/09/2013,346243,260.39,Dennis Eagle Ltd,DEN005,Director of Operational Services,Revenue,Transport Related Expenditure
http://www.ons.gov.uk/ons/guide-method/geography/products/names--codes-and-look-ups/names-and-codes-listings/names-and-codes-for-administrative-geography/index.html,Thanet District Council,30/09/2013,345992,336.25,Dover District Council,DOV001,East Kent Shared Services,Revenue,Employees
http://www.ons.gov.uk/ons/guide-method/geography/products/names--codes-and-look-ups/names-and-codes-listings/names-and-codes-for-administrative-geography/index.html,Thanet District Council,30/09/2013,346213,9782,Egbert H Taylor & Company Ltd,TAY005,Director of Corporate Services and Transformation,Balance Sheet,Long Term Assets
http://www.ons.gov.uk/ons/guide-method/geography/products/names--codes-and-look-ups/names-and-codes-listings/names-and-codes-for-administrative-geography/index.html,Thanet District Council,30/09/2013,346461,709,Family Mosaic Housing,FAM001,Director of Corporate Services and Transformation,Balance Sheet,Long Term Assets
http://www.ons.gov.uk/ons/guide-method/geography/products/names--codes-and-look-ups/names-and-codes-listings/names-and-codes-for-administrative-geography/index.html,Thanet District Council,30/09/2013,345914,3120.5,Goddard Hester,GOD003,Director of Community Services,Revenue,Supplies And Services
http://www.ons.gov.uk/ons/guide-method/geography/products/names--codes-and-look-ups/names-and-codes-listings/names-and-codes-for-administrative-geography/index.html,Thanet District Council,30/09/2013,346459,600,Graham Ford Chartered Surveyors,FOR010,Director of Community Services,Revenue,Supplies And Services
